Workbook

Sheet Interfaz
C5: POBLACIÓN ASIGNADA SEGÚN CENSOS INEI - RENIEC - PN - CNV - 2010
C10: RED INTEGRADA DE SALUD HUAURA OYÓN
A22: Elaboración: Área de Estadística - RIS Huaura Oyón.
A23: NOTA: LA POBLACION ESTIMADA DE EDADES SIMPLES Y GRUPOS DE EDAD DE DISTRITOS, CORRESPONDEN A CIFRAS REFERENCIALES HASTA OBTENER LAS CIFRAS DE LAS PROYECCIONES DEL INEI
A26: OFICINA DE GESTION DE LA INFORMACIÓN - MINISTERIO DE SALUD
R27: Versión1.030

Sheet Poblacion
C1: 1 | D1: 2 | E1: 3 | F1: 4 | G1: 5 | H1: 6 | I1: 7 | J1: 8 | K1: 9 | L1: 10 | M1: 11 | N1: 12 | O1: 13 | P1: 14 | Q1: 15 | R1: 16 | S1: 17 | T1: 18 | U1: 19 | V1: 20 | W1: 21 | X1: 22 | Y1: 23 | Z1: 24 | AA1: 25 | AB1: 26 | AC1: 27 | AD1: 28 | AE1: 29 | AF1: 30 | AG1: 31 | AH1: 32 | AI1: 33 | AJ1: 34 | AK1: 35 | AL1: 36 | AM1: 37 | AN1: 38 | AO1: 39 | AP1: 40 | AQ1: 41 | AR1: 42 | AS1: 43 | AT1: 44 | AU1: 45 | AV1: 46 | AW1: 47 | AX1: 48 | AY1: 49 | AZ1: 50 | BA1: 51 | BB1: 52 | BC1: 53 | BD1: 54 | BE1: 55 | BF1: 56 | BG1: 57 | BH1: 58 | BI1: 59 | BJ1: 60 | BK1: 61 | BL1: 62 | BM1: 63 | BN1: 64 | BO1: 65 | BP1: 66 | BQ1: 67 | BR1: 68 | BS1: 69 | BT1: 70 | BU1: 71 | BV1: 72 | BW1: 73 | BX1: 74 | BY1: 75 | BZ1: 76 | CA1: 77 | CB1: 78 | CC1: 79 | CD1: 80 | CE1: 81 | CF1: 82 | CG1: 83 | CH1: 84 | CI1: 85 | CJ1: 86 | CK1: 87 | CL1: 88 | CM1: 89 | CN1: 90 | CO1: 91 | CP1: 92 | CQ1: 93 | CR1: 94 | CS1: 95 | CT1: 96 | CU1: 97 | CV1: 98 | CW1: 99 | CX1: 106 | CY1: 107 | CZ1: 108 | DA1: 109 | DB1: 110 | DC1: 111
S2: POBLACIÓN ESTIMADA POR GRUPOS DE EDAD, SEGÚN PROVINCIAS DISTRITOS Y ESTABLECIMIENTOS DE SALUD
S3: RED INTEGRADA DE SALUD HUAURA OYON - AÑO 2010 | BQ3: MAS GRUPOS DE EDAD
S4: EDADES PUNTUALES Y GRUPOS DE EDAD
C5: N° | E5: DIRECCION DE SALUD | F5: TOTAL GENERAL | H5: TOTAL MASCULINO | I5: TOTAL FEMENINO | K5: EDAD | M5: EDAD | O5: EDAD | Q5: EDAD | S5: EDAD | U5: EDAD | W5: EDAD | Y5: EDAD | AA5: EDAD | AC5: EDAD | AE5: EDAD | AG5: EDAD | AI5: EDAD | AK5: EDAD | AM5: EDAD | AO5: EDAD | AQ5: EDAD | AS5: EDAD | AU5: EDAD | AW5: EDAD | AY5: EDAD | BA5: EDAD | BC5: GESTANTES | BG5: NACIMIENTOS | BH5: 28 DIAS DE NACIDO | BI5: POB.FEMENINA | BL5: menor de 1 Año | BM5: Pre escolar (1-4) | BN5: Niño (0 - 11) | BO5: Escolar (05 - 17) | BP5: Adolescente (12 - 17) | BQ5: Adulto Joven (18 - 29) | BR5: Adulto (30-59) | BS5: Adu.Mayor (60 a MAS) | BU5: Escolar (05 - 09) | BV5: Adolescente (10 - 19) | BW5: Adulto (20-59)
A6: UBIGEO | E6: PROVINCIA | K6: 0 | M6: 1 | O6: 2 | Q6: 3 | S6: 4 | U6: 5 - 9 | W6: 10 - 11 | Y6: 12 - 17 | AA6: 18 - 19 | AC6: 20 - 24 | AE6: 25 - 29 | AG6: 30 - 34 | AI6: 35 - 39 | AK6: 40 - 44 | AM6: 45 - 49 | AO6: 50 - 54 | AQ6: 55 - 59 | AS6: 60 - 64 | AU6: 65 - 69 | AW6: 70- 74 | AY6: 75 - 79 | BA6: 80 - + | BC6: TOTAL | BD6: SECTOR PUBLICO | BE6: SECTOR PRIVADO | BF6: NO RECIBIERON ATENCION | BI6: 10 - 19 | BJ6: 15 - 49
B7: Microredes | D7: RENAES | E7: DISTRITO | K7: M | L7: F | M7: M | N7: F | O7: M | P7: F | Q7: M | R7: F | S7: M | T7: F | U7: M | V7: F | W7: M | X7: F | Y7: M | Z7: F | AA7: M | AB7: F | AC7: M | AD7: F | AE7: M | AF7: F | AG7: M | AH7: F | AI7: M | AJ7: F | AK7: M | AL7: F | AM7: M | AN7: F | AO7: M | AP7: F | AQ7: M | AR7: F | AS7: M | AT7: F | AU7: M | AV7: F | AW7: M | AX7: F | AY7: M | AZ7: F | BA7: M | BB7: F
A8: 150000 | C8: 1 | E8: HUAURA - OYON | F8: 242794 | H8: 120219.4491 | I8: 122574.5509 | K8: 2092.5039 | L8: 2133.4961 | M8: 2082.6009 | N8: 2123.3991 | O8: 2085.07665 | P8: 2125.92335 | Q8: 2084.5815 | R8: 2125.4185 | S8: 2087.05725 | T8: 2127.94275 | U8: 10373.88765 | V8: 10577.11235 | W8: 4116.18195 | X8: 4196.81805 | Y8: 13379.44815 | Z8: 13641.55185 | AA8: 4656.88575 | AB8: 4748.11425 | AC8: 10826.9499 | AD8: 11039.0501 | AE8: 10719.50235 | AF8: 10929.49765 | AG8: 10284.2655 | AH8: 10485.7345 | AI8: 8598.27975 | AJ8: 8766.72025 | AK8: 7854.56445 | AL8: 8008.43555 | AM8: 7044.49905 | AN8: 7182.50095 | AO8: 5661.5451 | AP8: 5772.4549 | AQ8: 4632.6234 | AR8: 4723.3766 | AS8: 3619.5465 | AT8: 3690.4535 | AU8: 2822.85015 | AV8: 2878.14985 | AW8: 2195.4951 | AX8: 2238.5049 | AY8: 1566.6546 | AZ8: 1597.3454 | BA8: 1434.44955 | BB8: 1462.55045 | BC8: 7279 | BD8: 5913 | BE8: 1243 | BF8: 123 | BG8: 4176 | BH8: 318 | BI8: 21881 | BJ8: 68209 | BL8: 4226 | BM8: 16842 | BN8: 50332 | BO8: 56285 | BP8: 27021 | BQ8: 52920 | BR8: 89015 | BS8: 23506 | BU8: 20951 | BV8: 44739 | BW8: 132530
A9: 150800 | C9: 2 | D9: 150800 | E9: PROVINCIA HUAURA | F9: 216624 | H9: 107261.3736 | I9: 109362.6264 | K9: 1867.21065 | L9: 1903.78935 | M9: 1857.8028 | N9: 1894.1972 | O9: 1860.27855 | P9: 1896.72145 | Q9: 1860.7737 | R9: 1897.2263 | S9: 1861.26885 | T9: 1897.73115 | U9: 9255.83895 | V9: 9437.16105 | W9: 3672.52755 | X9: 3744.47245 | Y9: 11936.58105 | Z9: 12170.41895 | AA9: 4155.2988 | AB9: 4236.7012 | AC9: 9659.88135 | AD9: 9849.11865 | AE9: 9564.3174 | AF9: 9751.6826 | AG9: 9175.62465 | AH9: 9355.37535 | AI9: 7671.35895 | AJ9: 7821.64105 | AK9: 7008.3531 | AL9: 7145.6469 | AM9: 6285.4341 | AN9: 6408.5659 | AO9: 5051.02515 | AP9: 5149.97485 | AQ9: 4133.01705 | AR9: 4213.98295 | AS9: 3229.3683 | AT9: 3292.6317 | AU9: 2518.82805 | AV9: 2568.17195 | AW9: 1958.8134 | AX9: 1997.1866 | AY9: 1397.80845 | AZ9: 1425.19155 | BA9: 1279.96275 | BB9: 1305.03725 | BC9: 6479 | BD9: 5262 | BE9: 1107 | BF9: 110 | BG9: 3717 | BH9: 283 | BI9: 19481 | BJ9: 60725 | BL9: 3771 | BM9: 15026 | BN9: 44907 | BO9: 50217 | BP9: 24107 | BQ9: 47217 | BR9: 79420 | BS9: 20973 | BU9: 18693 | BV9: 39916 | BW9: 118245
A10: 150801 | C10: 3 | D10: 150802 | E10: DISTRITO HUACHO | F10: 60846 | H10: 30127.8969 | I10: 30718.1031 | K10: 522.38325 | L10: 532.61675 | M10: 521.8881 | N10: 532.1119 | O10: 522.38325 | P10: 532.61675 | Q10: 522.38325 | R10: 532.61675 | S10: 522.8784 | T10: 533.1216 | U10: 2600.03265 | V10: 2650.96735 | W10: 1031.39745 | X10: 1051.60255 | Y10: 3352.66065 | Z10: 3418.33935 | AA10: 1167.5637 | AB10: 1190.4363 | AC10: 2713.422 | AD10: 2766.578 | AE10: 2686.6839 | AF10: 2739.3161 | AG10: 2577.25575 | AH10: 2627.74425 | AI10: 2154.8928 | AJ10: 2197.1072 | AK10: 1968.7164 | AL10: 2007.2836 | AM10: 1765.7049 | AN10: 1800.2951 | AO10: 1418.60475 | AP10: 1446.39525 | AQ10: 1161.12675 | AR10: 1183.87325 | AS10: 907.1148 | AT10: 924.8852 | AU10: 707.56935 | AV10: 721.43065 | AW10: 550.11165 | AX10: 560.88835 | AY10: 392.65395 | AZ10: 400.34605 | BA10: 360.4692 | BB10: 367.5308 | BC10: 1848 | BD10: 1501 | BE10: 316 | BF10: 31 | BG10: 1060 | BH10: 81 | BI10: 5583 | BJ10: 17400 | BL10: 1055 | BM10: 4220 | BN10: 12609 | BO10: 14105 | BP10: 6771 | BQ10: 13264 | BR10: 22309 | BS10: 5893 | BU10: 5251 | BV10: 11212 | BW10: 33215
B11: 00 | C11: 4 | D11: 7639 | E11: HOSPITAL HUACHO | F11: 48677 | H11: 24102.41655 | I11: 24574.58345 | K11: 417.9066 | L11: 426.0934 | M11: 417.41145 | N11: 425.58855 | O11: 417.9066 | P11: 426.0934 | Q11: 417.9066 | R11: 426.0934 | S11: 418.40175 | T11: 426.59825 | U11: 2080.12515 | V11: 2120.87485 | W11: 824.9199 | X11: 841.0801 | Y11: 2682.22755 | Z11: 2734.77245 | AA11: 933.8529 | AB11: 952.1471 | AC11: 2170.7376 | AD11: 2213.2624 | AE11: 2149.44615 | AF11: 2191.55385 | AG11: 2061.8046 | AH11: 2102.1954 | AI11: 1724.1123 | AJ11: 1757.8877 | AK11: 1575.07215 | AL11: 1605.92785 | AM11: 1412.66295 | AN11: 1440.33705 | AO11: 1134.8838 | AP11: 1157.1162 | AQ11: 928.9014 | AR11: 947.0986 | AS11: 725.8899 | AT11: 740.1101 | AU11: 565.95645 | AV11: 577.04355 | AW11: 440.18835 | AX11: 448.81165 | AY11: 313.9251 | AZ11: 320.0749 | BA11: 288.1773 | BB11: 293.8227 | BC11: 1479 | BD11: 1201 | BE11: 253 | BF11: 25 | BG11: 848 | BH11: 65 | BI11: 4466 | BJ11: 13920 | BL11: 844 | BM11: 3376 | BN11: 10087 | BO11: 11284 | BP11: 5417 | BQ11: 10611 | BR11: 17848 | BS11: 4714 | BU11: 4201 | BV11: 8969 | BW11: 26573
B12: 02 | C12: 5 | D12: 5679 | E12: P.S. MANZANARES | F12: 12169 | H12: 6025.48035 | I12: 6143.51965 | K12: 104.47665 | L12: 106.52335 | M12: 104.47665 | N12: 106.52335 | O12: 104.47665 | P12: 106.52335 | Q12: 104.47665 | R12: 106.52335 | S12: 104.47665 | T12: 106.52335 | U12: 519.9075 | V12: 530.0925 | W12: 206.47755 | X12: 210.52245 | Y12: 670.4331 | Z12: 683.5669 | AA12: 233.7108 | AB12: 238.2892 | AC12: 542.6844 | AD12: 553.3156 | AE12: 537.23775 | AF12: 547.76225 | AG12: 515.45115 | AH12: 525.54885 | AI12: 430.7805 | AJ12: 439.2195 | AK12: 393.64425 | AL12: 401.35575 | AM12: 353.04195 | AN12: 359.95805 | AO12: 283.72095 | AP12: 289.27905 | AQ12: 232.22535 | AR12: 236.77465 | AS12: 181.2249 | AT12: 184.7751 | AU12: 141.6129 | AV12: 144.3871 | AW12: 109.9233 | AX12: 112.0767 | AY12: 78.72885 | AZ12: 80.27115 | BA12: 72.2919 | BB12: 73.7081 | BC12: 369 | BD12: 300 | BE12: 63 | BF12: 6 | BG12: 212 | BH12: 16 | BI12: 1117 | BJ12: 3480 | BL12: 211 | BM12: 844 | BN12: 2522 | BO12: 2821 | BP12: 1354 | BQ12: 2653 | BR12: 4461 | BS12: 1179 | BU12: 1050 | BV12: 2243 | BW12: 6642
A13: 150802 | C13: 6 | D13: 150802 | E13: DISTRITO AMBAR | F13: 3101 | H13: 1535.46015 | I13: 1565.53985 | K13: 27.7284 | L13: 28.2716 | M13: 26.7381 | N13: 27.2619 | O13: 26.7381 | P13: 27.2619 | Q13: 26.7381 | R13: 27.2619 | S13: 26.7381 | T13: 27.2619 | U13: 132.7002 | V13: 135.2998 | W13: 52.4859 | X13: 53.5141 | Y13: 170.3316 | Z13: 173.6684 | AA13: 59.418 | AB13: 60.582 | AC13: 138.14685 | AD13: 140.85315 | AE13: 137.15655 | AF13: 139.84345 | AG13: 131.21475 | AH13: 133.78525 | AI13: 109.9233 | AJ13: 112.0767 | AK13: 100.51545 | AL13: 102.48455 | AM13: 90.1173 | AN13: 91.8827 | AO13: 72.2919 | AP13: 73.7081 | AQ13: 58.92285 | AR13: 60.07715 | AS13: 46.04895 | AT13: 46.95105 | AU13: 36.14595 | AV13: 36.85405 | AW13: 28.22355 | AX13: 28.77645 | AY13: 19.806 | AZ13: 20.194 | BA13: 17.33025 | BB13: 17.66975 | BC13: 99 | BD13: 80 | BE13: 17 | BF13: 2 | BG13: 57 | BH13: 4 | BI13: 284 | BJ13: 887 | BL13: 56 | BM13: 216 | BN13: 646 | BO13: 718 | BP13: 344 | BQ13: 676 | BR13: 1137 | BS13: 298 | BU13: 268 | BV13: 570 | BW13: 1693
B14: 01 | C14: 7 | D14: 5680 | E14: C.S. AMBAR | F14: 1861 | H14: 921.47415 | I14: 939.52585 | K14: 16.8351 | L14: 17.1649 | M14: 15.8448 | N14: 16.1552 | O14: 15.8448 | P14: 16.1552 | Q14: 15.8448 | R14: 16.1552 | S14: 15.8448 | T14: 16.1552 | U14: 79.71915 | V14: 81.28085 | W14: 31.6896 | X14: 32.3104 | Y14: 102.0009 | Z14: 103.9991 | AA14: 35.6508 | AB14: 36.3492 | AC14: 82.69005 | AD14: 84.30995 | AE14: 82.1949 | AF14: 83.8051 | AG14: 79.224 | AH14: 80.776 | AI14: 66.3501 | AJ14: 67.6499 | AK14: 60.4083 | AL14: 61.5917 | AM14: 53.97135 | AN14: 55.02865 | AO14: 43.5732 | AP14: 44.4268 | AQ14: 35.15565 | AR14: 35.84435 | AS14: 27.7284 | AT14: 28.2716 | AU14: 21.7866 | AV14: 22.2134 | AW14: 16.8351 | AX14: 17.1649 | AY14: 11.8836 | AZ14: 12.1164 | BA14: 10.39815 | BB14: 10.60185 | BC14: 59 | BD14: 48 | BE14: 10 | BF14: 1 | BG14: 34 | BH14: 2 | BI14: 170 | BJ14: 532 | BL14: 34 | BM14: 128 | BN14: 387 | BO14: 431 | BP14: 206 | BQ14: 405 | BR14: 684 | BS14: 179 | BU14: 161 | BV14: 342 | BW14: 1017
B15: 01 | C15: 8 | D15: 5681 | E15: P.S. AYNACA | F15: 1240 | H15: 613.986 | I15: 626.014 | K15: 10.8933 | L15: 11.1067 | M15: 10.8933 | N15: 11.1067 | O15: 10.8933 | P15: 11.1067 | Q15: 10.8933 | R15: 11.1067 | S15: 10.8933 | T15: 11.1067 | U15: 52.98105 | V15: 54.01895 | W15: 20.7963 | X15: 21.2037 | Y15: 68.3307 | Z15: 69.6693 | AA15: 23.7672 | AB15: 24.2328 | AC15: 55.4568 | AD15: 56.5432 | AE15: 54.96165 | AF15: 56.03835 | AG15: 51.99075 | AH15: 53.00925 | AI15: 43.5732 | AJ15: 44.4268 | AK15: 40.10715 | AL15: 40.89285 | AM15: 36.14595 | AN15: 36.85405 | AO15: 28.7187 | AP15: 29.2813 | AQ15: 23.7672 | AR15: 24.2328 | AS15: 18.32055 | AT15: 18.67945 | AU15: 14.35935 | AV15: 14.64065 | AW15: 11.38845 | AX15: 11.61155 | AY15: 7.9224 | AZ15: 8.0776 | BA15: 6.9321 | BB15: 7.0679 | BC15: 40 | BD15: 32 | BE15: 7 | BF15: 1 | BG15: 23 | BH15: 2 | BI15: 114 | BJ15: 355 | BL15: 22 | BM15: 88 | BN15: 259 | BO15: 287 | BP15: 138 | BQ15: 271 | BR15: 453 | BS15: 119 | BU15: 107 | BV15: 228 | BW15: 676
A16: 150803 | C16: 9 | D16: 150803 | E16: DISTRITO CARQUIN | F16: 6685 | H16: 3310.07775 | I16: 3374.92225 | K16: 56.94225 | L16: 58.05775 | M16: 57.4374 | N16: 58.5626 | O16: 57.4374 | P16: 58.5626 | Q16: 57.4374 | R16: 58.5626 | S16: 57.4374 | T16: 58.5626 | U16: 285.70155 | V16: 291.29845 | W16: 113.38935 | X16: 115.61065 | Y16: 368.3916 | Z16: 375.6084 | AA16: 128.24385 | AB16: 130.75615 | AC16: 298.0803 | AD16: 303.9197 | AE16: 295.1094 | AF16: 300.8906 | AG16: 283.2258 | AH16: 288.7742 | AI16: 236.6817 | AJ16: 241.3183 | AK16: 216.38055 | AL16: 220.61945 | AM16: 194.0988 | AN16: 197.9012 | AO16: 155.97225 | AP16: 159.02775 | AQ16: 127.7487 | AR16: 130.2513 | AS16: 99.52515 | AT16: 101.47485 | AU16: 77.73855 | AV16: 79.26145 | AW16: 60.4083 | AX16: 61.5917 | AY16: 43.07805 | AZ16: 43.92195 | BA16: 39.612 | BB16: 40.388 | BC16: 201 | BD16: 163 | BE16: 35 | BF16: 3 | BG16: 116 | BH16: 9 | BI16: 613 | BJ16: 1912 | BL16: 115 | BM16: 464 | BN16: 1385 | BO16: 1550 | BP16: 744 | BQ16: 1457 | BR16: 2452 | BS16: 647 | BU16: 577 | BV16: 1232 | BW16: 3650
B17: 02 | C17: 10 | D17: 5664 | E17: C.S. CARQUIN | F17: 6685 | H17: 3310.07775 | I17: 3374.92225 | K17: 56.94225 | L17: 58.05775 | M17: 57.4374 | N17: 58.5626 | O17: 57.4374 | P17: 58.5626 | Q17: 57.4374 | R17: 58.5626 | S17: 57.4374 | T17: 58.5626 | U17: 285.70155 | V17: 291.29845 | W17: 113.38935 | X17: 115.61065 | Y17: 368.3916 | Z17: 375.6084 | AA17: 128.24385 | AB17: 130.75615 | AC17: 298.0803 | AD17: 303.9197 | AE17: 295.1094 | AF17: 300.8906 | AG17: 283.2258 | AH17: 288.7742 | AI17: 236.6817 | AJ17: 241.3183 | AK17: 216.38055 | AL17: 220.61945 | AM17: 194.0988 | AN17: 197.9012 | AO17: 155.97225 | AP17: 159.02775 | AQ17: 127.7487 | AR17: 130.2513 | AS17: 99.52515 | AT17: 101.47485 | AU17: 77.73855 | AV17: 79.26145 | AW17: 60.4083 | AX17: 61.5917 | AY17: 43.07805 | AZ17: 43.92195 | BA17: 39.612 | BB17: 40.388 | BC17: 201 | BD17: 163 | BE17: 35 | BF17: 3 | BG17: 116 | BH17: 9 | BI17: 613 | BJ17: 1912 | BL17: 115 | BM17: 464 | BN17: 1385 | BO17: 1550 | BP17: 744 | BQ17: 1457 | BR17: 2452 | BS17: 647 | BU17: 577 | BV17: 1232 | BW17: 3650
A18: 150804 | C18: 11 | D18: 150804 | E18: DISTRITO CHECRAS | F18: 1637 | H18: 810.56055 | I18: 826.43945 | K18: 13.36905 | L18: 13.63095 | M18: 13.8642 | N18: 14.1358 | O18: 13.8642 | P18: 14.1358 | Q18: 13.8642 | R18: 14.1358 | S18: 14.35935 | T18: 14.64065 | U18: 69.81615 | V18: 71.18385 | W18: 27.7284 | X18: 28.2716 | Y18: 90.61245 | Z18: 92.38755 | AA18: 31.19445 | AB18: 31.80555 | AC18: 72.78705 | AD18: 74.21295 | AE18: 72.2919 | AF18: 73.7081 | AG18: 69.321 | AH18: 70.679 | AI18: 57.93255 | AJ18: 59.06745 | AK18: 52.98105 | AL18: 54.01895 | AM18: 47.5344 | AN18: 48.4656 | AO18: 38.12655 | AP18: 38.87345 | AQ18: 31.19445 | AR18: 31.80555 | AS18: 24.26235 | AT18: 24.73765 | AU18: 18.8157 | AV18: 19.1843 | AW18: 14.8545 | AX18: 15.1455 | AY18: 11.38845 | AZ18: 11.61155 | BA18: 10.39815 | BB18: 10.60185 | BC18: 47 | BD18: 39 | BE18: 7 | BF18: 1 | BG18: 27 | BH18: 2 | BI18: 150 | BJ18: 468 | BL18: 27 | BM18: 113 | BN18: 337 | BO18: 380 | BP18: 183 | BQ18: 356 | BR18: 600 | BS18: 161 | BU18: 141 | BV18: 302 | BW18: 893
B19: 05 | C19: 12 | D19: 5663 | E19: P.S. PUÑUN | F19: 1637 | H19: 810.56055 | I19: 826.43945 | K19: 13.36905 | L19: 13.63095 | M19: 13.8642 | N19: 14.1358 | O19: 13.8642 | P19: 14.1358 | Q19: 13.8642 | R19: 14.1358 | S19: 14.35935 | T19: 14.64065 | U19: 69.81615 | V19: 71.18385 | W19: 27.7284 | X19: 28.2716 | Y19: 90.61245 | Z19: 92.38755 | AA19: 31.19445 | AB19: 31.80555 | AC19: 72.78705 | AD19: 74.21295 | AE19: 72.2919 | AF19: 73.7081 | AG19: 69.321 | AH19: 70.679 | AI19: 57.93255 | AJ19: 59.06745 | AK19: 52.98105 | AL19: 54.01895 | AM19: 47.5344 | AN19: 48.4656 | AO19: 38.12655 | AP19: 38.87345 | AQ19: 31.19445 | AR19: 31.80555 | AS19: 24.26235 | AT19: 24.73765 | AU19: 18.8157 | AV19: 19.1843 | AW19: 14.8545 | AX19: 15.1455 | AY19: 11.38845 | AZ19: 11.61155 | BA19: 10.39815 | BB19: 10.60185 | BC19: 47 | BD19: 39 | BE19: 7 | BF19: 1 | BG19: 27 | BH19: 2 | BI19: 150 | BJ19: 468 | BL19: 27 | BM19: 113 | BN19: 337 | BO19: 380 | BP19: 183 | BQ19: 356 | BR19: 600 | BS19: 161 | BU19: 141 | BV19: 302 | BW19: 893
A20: 150805 | C20: 13 | D20: 150805 | E20: DISTRITO HUALMAY | F20: 29421 | H20: 14567.80815 | I20: 14853.19185 | K20: 253.5168 | L20: 258.4832 | M20: 252.5265 | N20: 257.4735 | O20: 253.02165 | P20: 257.97835 | Q20: 252.5265 | R20: 257.4735 | S20: 253.02165 | T20: 257.97835 | U20: 1257.18585 | V20: 1281.81415 | W20: 498.61605 | X20: 508.38395 | Y20: 1621.61625 | Z20: 1653.38375 | AA20: 563.97585 | AB20: 575.02415 | AC20: 1312.1475 | AD20: 1337.8525 | AE20: 1298.77845 | AF20: 1324.22155 | AG20: 1246.29255 | AH20: 1270.70745 | AI20: 1041.7956 | AJ20: 1062.2044 | AK20: 951.6783 | AL20: 970.3217 | AM20: 853.6386 | AN20: 870.3614 | AO20: 685.78275 | AP20: 699.21725 | AQ20: 561.5001 | AR20: 572.4999 | AS20: 438.7029 | AT20: 447.2971 | AU20: 342.14865 | AV20: 348.85135 | AW20: 265.89555 | AX20: 271.10445 | AY20: 189.64245 | AZ20: 193.35755 | BA20: 173.79765 | BB20: 177.20235 | BC20: 897 | BD20: 729 | BE20: 154 | BF20: 14 | BG20: 515 | BH20: 39 | BI20: 2699 | BJ20: 8413 | BL20: 512 | BM20: 2042 | BN20: 6100 | BO20: 6821 | BP20: 3275 | BQ20: 6412 | BR20: 10786 | BS20: 2848 | BU20: 2539 | BV20: 5421 | BW20: 16059
B21: 02 | C21: 14 | D21: 5665 | E21: C.S. HUALMAY | F21: 15593 | H21: 7720.87395 | I21: 7872.12605 | K21: 134.18565 | L21: 136.81435 | M21: 134.18565 | N21: 136.81435 | O21: 133.6905 | P21: 136.3095 | Q21: 133.6905 | R21: 136.3095 | S21: 133.6905 | T21: 136.3095 | U21: 666.4719 | V21: 679.5281 | W21: 264.4101 | X21: 269.5899 | Y21: 859.5804 | Z21: 876.4196 | AA21: 299.0706 | AB21: 304.9294 | AC21: 695.1906 | AD21: 708.8094 | AE21: 688.2585 | AF21: 701.7415 | AG21: 660.5301 | AH21: 673.4699 | AI21: 552.09225 | AJ21: 562.90775 | AK21: 504.55785 | AL21: 514.44215 | AM21: 452.5671 | AN21: 461.4329 | AO21: 363.4401 | AP21: 370.5599 | AQ21: 297.58515 | AR21: 303.41485 | AS21: 232.7205 | AT21: 237.2795 | AU21: 181.2249 | AV21: 184.7751 | AW21: 141.11775 | AX21: 143.88225 | AY21: 100.51545 | AZ21: 102.48455 | BA21: 92.0979 | BB21: 93.9021 | BC21: 475 | BD21: 386 | BE21: 82 | BF21: 7 | BG21: 273 | BH21: 21 | BI21: 1430 | BJ21: 4459 | BL21: 271 | BM21: 1081 | BN21: 3232 | BO21: 3616 | BP21: 1736 | BQ21: 3398 | BR21: 5717 | BS21: 1510 | BU21: 1346 | BV21: 2874 | BW21: 8511
B22: 02 | C22: 15 | D22: 5666 | E22: P.S.DGO. MANDAMIENTO | F22: 9709 | H22: 4807.41135 | I22: 4901.58865 | K22: 83.68035 | L22: 85.31965 | M22: 83.1852 | N22: 84.8148 | O22: 83.68035 | P22: 85.31965 | Q22: 83.68035 | R22: 85.31965 | S22: 83.68035 | T22: 85.31965 | U22: 414.9357 | V22: 423.0643 | W22: 164.3898 | X22: 167.6102 | Y22: 535.25715 | Z22: 545.74285 | AA22: 186.1764 | AB22: 189.8236 | AC22: 432.7611 | AD22: 441.2389 | AE22: 428.7999 | AF22: 437.2001 | AG22: 411.46965 | AH22: 419.53035 | AI22: 343.6341 | AJ22: 350.3659 | AK22: 313.9251 | AL22: 320.0749 | AM22: 281.74035 | AN22: 287.25965 | AO22: 226.28355 | AP22: 230.71645 | AQ22: 185.1861 | AR22: 188.8139 | AS22: 144.5838 | AT22: 147.4162 | AU22: 112.8942 | AV22: 115.1058 | AW22: 87.64155 | AX22: 89.35845 | AY22: 62.3889 | AZ22: 63.6111 | BA22: 57.4374 | BB22: 58.5626 | BC22: 297 | BD22: 241 | BE22: 51 | BF22: 5 | BG22: 170 | BH22: 13 | BI22: 891 | BJ22: 2776 | BL22: 169 | BM22: 675 | BN22: 2014 | BO22: 2251 | BP22: 1081 | BQ22: 2116 | BR22: 3559 | BS22: 939 | BU22: 838 | BV22: 1789 | BW22: 5299
B23: 02 | C23: 16 | D23: 5667 | E23: P.S. CAMPO ALEGRE | F23: 4119 | H23: 2039.52285 | I23: 2079.47715 | K23: 35.6508 | L23: 36.3492 | M23: 35.15565 | N23: 35.84435 | O23: 35.6508 | P23: 36.3492 | Q23: 35.15565 | R23: 35.84435 | S23: 35.6508 | T23: 36.3492 | U23: 175.77825 | V23: 179.22175 | W23: 69.81615 | X23: 71.18385 | Y23: 226.7787 | Z23: 231.2213 | AA23: 78.72885 | AB23: 80.27115 | AC23: 184.1958 | AD23: 187.8042 | AE23: 181.72005 | AF23: 185.27995 | AG23: 174.2928 | AH23: 177.7072 | AI23: 146.06925 | AJ23: 148.93075 | AK23: 133.19535 | AL23: 135.80465 | AM23: 119.33115 | AN23: 121.66885 | AO23: 96.0591 | AP23: 97.9409 | AQ23: 78.72885 | AR23: 80.27115 | AS23: 61.3986 | AT23: 62.6014 | AU23: 48.02955 | AV23: 48.97045 | AW23: 37.13625 | AX23: 37.86375 | AY23: 26.7381 | AZ23: 27.2619 | BA23: 24.26235 | BB23: 24.73765 | BC23: 125 | BD23: 102 | BE23: 21 | BF23: 2 | BG23: 72 | BH23: 5 | BI23: 378 | BJ23: 1178 | BL23: 72 | BM23: 286 | BN23: 854 | BO23: 954 | BP23: 458 | BQ23: 898 | BR23: 1510 | BS23: 399 | BU23: 355 | BV23: 758 | BW23: 2249
A24: 150806 | C24: 17 | D24: 150806 | E24: DISTRITO HUAURA | F24: 34254 | H24: 16960.8681 | I24: 17293.1319 | K24: 295.1094 | L24: 300.8906 | M24: 293.62395 | N24: 299.37605 | O24: 294.1191 | P24: 299.8809 | Q24: 294.1191 | R24: 299.8809 | S24: 294.61425 | T24: 300.38575 | U24: 1463.6634 | V24: 1492.3366 | W24: 580.81095 | X24: 592.18905 | Y24: 1887.5118 | Z24: 1924.4882 | AA24: 657.06405 | AB24: 669.93595 | AC24: 1527.53775 | AD24: 1557.46225 | AE24: 1512.1881 | AF24: 1541.8119 | AG24: 1450.7895 | AH24: 1479.2105 | AI24: 1213.1175 | AJ24: 1236.8825 | AK24: 1108.1457 | AL24: 1129.8543 | AM24: 993.76605 | AN24: 1013.23395 | AO24: 798.67695 | AP24: 814.32305 | AQ24: 653.598 | AR24: 666.402 | AS24: 510.9948 | AT24: 521.0052 | AU24: 398.1006 | AV24: 405.8994 | AW24: 309.9639 | AX24: 316.0361 | AY24: 220.8369 | AZ24: 225.1631 | BA24: 202.51635 | BB24: 206.48365 | BC24: 927 | BD24: 753 | BE24: 158 | BF24: 16 | BG24: 532 | BH24: 41 | BI24: 2789 | BJ24: 8693 | BL24: 596 | BM24: 2376 | BN24: 7101 | BO24: 7941 | BP24: 3812 | BQ24: 7466 | BR24: 12558 | BS24: 3317 | BU24: 2956 | BV24: 6312 | BW24: 18697
B25: 01 | C25: 18 | D25: 5682 | E25: C.S HUAURA | F25: 15413 | H25: 7631.74695 | I25: 7781.25305 | K25: 132.7002 | L25: 135.2998 | M25: 132.20505 | N25: 134.79495 | O25: 132.20505 | P25: 134.79495 | Q25: 132.20505 | R25: 134.79495 | S25: 132.7002 | T25: 135.2998 | U25: 658.5495 | V25: 671.4505 | W25: 261.4392 | X25: 266.5608 | Y25: 849.18225 | Z25: 865.81775 | AA25: 295.60455 | AB25: 301.39545 | AC25: 687.2682 | AD25: 700.7318 | AE25: 680.3361 | AF25: 693.6639 | AG25: 653.10285 | AH25: 665.89715 | AI25: 545.6553 | AJ25: 556.3447 | AK25: 498.61605 | AL25: 508.38395 | AM25: 447.6156 | AN25: 456.3844 | AO25: 359.4789 | AP25: 366.5211 | AQ25: 294.1191 | AR25: 299.8809 | AS25: 229.7496 | AT25: 234.2504 | AU25: 179.2443 | AV25: 182.7557 | AW25: 139.6323 | AX25: 142.3677 | AY25: 99.03 | AZ25: 100.97 | BA25: 91.1076 | BB25: 92.8924 | BC25: 417 | BD25: 339 | BE25: 71 | BF25: 7 | BG25: 239 | BH25: 18 | BI25: 1255 | BJ25: 3911 | BL25: 268 | BM25: 1069 | BN25: 3195 | BO25: 3573 | BP25: 1715 | BQ25: 3359 | BR25: 5652 | BS25: 1492 | BU25: 1330 | BV25: 2840 | BW25: 8414
B26: 01 | C26: 19 | D26: 5686 | E26: P.S. MAT. EL SOCORRO | F26: 11990 | H26: 5936.8485 | I26: 6053.1515 | K26: 103.48635 | L26: 105.51365 | M26: 102.49605 | N26: 104.50395 | O26: 102.9912 | P26: 105.0088 | Q26: 102.9912 | R26: 105.0088 | S26: 102.9912 | T26: 105.0088 | U26: 512.48025 | V26: 522.51975 | W26: 203.0115 | X26: 206.9885 | Y26: 660.5301 | Z26: 673.4699 | AA26: 229.7496 | AB26: 234.2504 | AC26: 535.25715 | AD26: 545.74285 | AE26: 529.31535 | AF26: 539.68465 | AG26: 508.0239 | AH26: 517.9761 | AI26: 424.8387 | AJ26: 433.1613 | AK26: 387.70245 | AL26: 395.29755 | AM26: 347.5953 | AN26: 354.4047 | AO26: 279.75975 | AP26: 285.24025 | AQ26: 228.7593 | AR26: 233.2407 | AS26: 179.2443 | AT26: 182.7557 | AU26: 139.13715 | AV26: 141.86285 | AW26: 108.43785 | AX26: 110.56215 | AY26: 77.2434 | AZ26: 78.7566 | BA26: 70.80645 | BB26: 72.19355 | BC26: 326 | BD26: 264 | BE26: 56 | BF26: 6 | BG26: 186 | BH26: 15 | BI26: 976 | BJ26: 3043 | BL26: 209 | BM26: 831 | BN26: 2485 | BO26: 2779 | BP26: 1334 | BQ26: 2614 | BR26: 4396 | BS26: 1161 | BU26: 1035 | BV26: 2208 | BW26: 6546
B27: 01 | C27: 20 | D27: 5683 | E27: P.S. HUMAYA | F27: 4282 | H27: 2120.2323 | I27: 2161.7677 | K27: 36.6411 | L27: 37.3589 | M27: 36.6411 | N27: 37.3589 | O27: 36.6411 | P27: 37.3589 | Q27: 36.6411 | R27: 37.3589 | S27: 36.6411 | T27: 37.3589 | U27: 183.2055 | V27: 186.7945 | W27: 72.78705 | X27: 74.21295 | Y27: 236.18655 | Z27: 240.81345 | AA27: 82.1949 | AB27: 83.8051 | AC27: 191.1279 | AD27: 194.8721 | AE27: 189.1473 | AF27: 192.8527 | AG27: 181.2249 | AH27: 184.7751 | AI27: 151.5159 | AJ27: 154.4841 | AK27: 138.642 | AL27: 141.358 | AM27: 124.28265 | AN27: 126.71735 | AO27: 99.52515 | AP27: 101.47485 | AQ27: 81.69975 | AR27: 83.30025 | AS27: 63.87435 | AT27: 65.12565 | AU27: 50.01015 | AV27: 50.98985 | AW27: 38.6217 | AX27: 39.3783 | AY27: 27.7284 | AZ27: 28.2716 | BA27: 25.25265 | BB27: 25.74735 | BC27: 116 | BD27: 94 | BE27: 20 | BF27: 2 | BG27: 67 | BH27: 5 | BI27: 349 | BJ27: 1087 | BL27: 74 | BM27: 296 | BN27: 887 | BO27: 994 | BP27: 477 | BQ27: 934 | BR27: 1569 | BS27: 415 | BU27: 370 | BV27: 790 | BW27: 2337
B28: 01 | C28: 21 | D28: 5684 | E28: P.S. VILCAHUAURA | F28: 2056 | H28: 1018.0284 | I28: 1037.9716 | K28: 17.8254 | L28: 18.1746 | M28: 17.8254 | N28: 18.1746 | O28: 17.8254 | P28: 18.1746 | Q28: 17.8254 | R28: 18.1746 | S28: 17.8254 | T28: 18.1746 | U28: 87.64155 | V28: 89.35845 | W28: 34.6605 | X28: 35.3395 | Y28: 113.38935 | Z28: 115.61065 | AA28: 39.612 | AB28: 40.388 | AC28: 91.1076 | AD28: 92.8924 | AE28: 90.61245 | AF28: 92.38755 | AG28: 87.1464 | AH28: 88.8536 | AI28: 72.78705 | AJ28: 74.21295 | AK28: 66.3501 | AL28: 67.6499 | AM28: 59.418 | AN28: 60.582 | AO28: 48.02955 | AP28: 48.97045 | AQ28: 39.11685 | AR28: 39.88315 | AS28: 30.6993 | AT28: 31.3007 | AU28: 23.7672 | AV28: 24.2328 | AW28: 18.8157 | AX28: 19.1843 | AY28: 13.36905 | AZ28: 13.63095 | BA28: 12.37875 | BB28: 12.62125 | BC28: 55 | BD28: 45 | BE28: 9 | BF28: 1 | BG28: 32 | BH28: 2 | BI28: 167 | BJ28: 522 | BL28: 36 | BM28: 144 | BN28: 427 | BO28: 476 | BP28: 229 | BQ28: 447 | BR28: 753 | BS28: 200 | BU28: 177 | BV28: 379 | BW28: 1120
B29: 01 | C29: 22 | D29: 5685 | E29: P.S. PEÑICO | F29: 513 | H29: 254.01195 | I29: 258.98805 | K29: 4.45635 | L29: 4.54365 | M29: 4.45635 | N29: 4.54365 | O29: 4.45635 | P29: 4.54365 | Q29: 4.45635 | R29: 4.54365 | S29: 4.45635 | T29: 4.54365 | U29: 21.7866 | V29: 22.2134 | W29: 8.9127 | X29: 9.0873 | Y29: 28.22355 | Z29: 28.77645 | AA29: 9.903 | AB29: 10.097 | AC29: 22.7769 | AD29: 23.2231 | AE29: 22.7769 | AF29: 23.2231 | AG29: 21.29145 | AH29: 21.70855 | AI29: 18.32055 | AJ29: 18.67945 | AK29: 16.8351 | AL29: 17.1649 | AM29: 14.8545 | AN29: 15.1455 | AO29: 11.8836 | AP29: 12.1164 | AQ29: 9.903 | AR29: 10.097 | AS29: 7.42725 | AT29: 7.57275 | AU29: 5.9418 | AV29: 6.0582 | AW29: 4.45635 | AX29: 4.54365 | AY29: 3.46605 | AZ29: 3.53395 | BA29: 2.9709 | BB29: 3.0291 | BC29: 13 | BD29: 11 | BE29: 2 | BF29: 0 | BG29: 8 | BH29: 1 | BI29: 42 | BJ29: 130 | BL29: 9 | BM29: 36 | BN29: 107 | BO29: 119 | BP29: 57 | BQ29: 112 | BR29: 188 | BS29: 49 | BU29: 44 | BV29: 95 | BW29: 280
A30: 150807 | C30: 23 | D30: 150807 | E30: DISTRITO LEONCIO PRADO | F30: 2208 | H30: 1093.2912 | I30: 1114.7088 | K30: 18.8157 | L30: 19.1843 | M30: 18.8157 | N30: 19.1843 | O30: 18.8157 | P30: 19.1843 | Q30: 18.8157 | R30: 19.1843 | S30: 19.31085 | T30: 19.68915 | U30: 94.57365 | V30: 96.42635 | W30: 37.6314 | X30: 38.3686 | Y30: 121.8069 | Z30: 124.1931 | AA30: 42.08775 | AB30: 42.91225 | AC30: 98.53485 | AD30: 100.46515 | AE30: 97.54455 | AF30: 99.45545 | AG30: 93.58335 | AH30: 95.41665 | AI30: 78.2337 | AJ30: 79.7663 | AK30: 71.3016 | AL30: 72.6984 | AM30: 63.87435 | AN30: 65.12565 | AO30: 51.4956 | AP30: 52.5044 | AQ30: 42.08775 | AR30: 42.91225 | AS30: 32.6799 | AT30: 33.3201 | AU30: 25.7478 | AV30: 26.2522 | AW30: 20.30115 | AX30: 20.69885 | AY30: 14.35935 | AZ30: 14.64065 | BA30: 12.8739 | BB30: 13.1261 | BC30: 55 | BD30: 45 | BE30: 9 | BF30: 1 | BG30: 31 | BH30: 2 | BI30: 164 | BJ30: 512 | BL30: 38 | BM30: 153 | BN30: 458 | BO30: 513 | BP30: 246 | BQ30: 481 | BR30: 809 | BS30: 214 | BU30: 191 | BV30: 407 | BW30: 1205
B31: 03 | C31: 24 | D31: 5778 | E31: P.S. AUQUIMARCA | F31: 397 | H31: 196.57455 | I31: 200.42545 | K31: 3.46605 | L31: 3.53395 | M31: 3.46605 | N31: 3.53395 | O31: 3.46605 | P31: 3.53395 | Q31: 3.46605 | R31: 3.53395 | S31: 3.46605 | T31: 3.53395 | U31: 16.8351 | V31: 17.1649 | W31: 6.9321 | X31: 7.0679 | Y31: 22.28175 | Z31: 22.71825 | AA31: 7.42725 | AB31: 7.57275 | AC31: 16.8351 | AD31: 17.1649 | AE31: 17.8254 | AF31: 18.1746 | AG31: 16.8351 | AH31: 17.1649 | AI31: 13.8642 | AJ31: 14.1358 | AK31: 12.8739 | AL31: 13.1261 | AM31: 11.38845 | AN31: 11.61155 | AO31: 9.40785 | AP31: 9.59215 | AQ31: 7.42725 | AR31: 7.57275 | AS31: 5.9418 | AT31: 6.0582 | AU31: 4.9515 | AV31: 5.0485 | AW31: 3.46605 | AX31: 3.53395 | AY31: 2.47575 | AZ31: 2.52425 | BA31: 2.47575 | BB31: 2.52425 | BC31: 10 | BD31: 8 | BE31: 2 | BF31: 0 | BG31: 6 | BH31: 0 | BI31: 30 | BJ31: 92 | BL31: 7 | BM31: 28 | BN31: 83 | BO31: 93 | BP31: 45 | BQ31: 85 | BR31: 145 | BS31: 39 | BU31: 34 | BV31: 74 | BW31: 215
B32: 03 | C32: 25 | D32: 5779 | E32: P.S. PARAN | F32: 883 | H32: 437.21745 | I32: 445.78255 | K32: 7.42725 | L32: 7.57275 | M32: 7.42725 | N32: 7.57275 | O32: 7.42725 | P32: 7.57275 | Q32: 7.42725 | R32: 7.57275 | S32: 7.42725 | T32: 7.57275 | U32: 38.12655 | V32: 38.87345 | W32: 14.8545 | X32: 15.1455 | Y32: 48.5247 | Z32: 49.4753 | AA32: 16.8351 | AB32: 17.1649 | AC32: 39.612 | AD32: 40.388 | AE32: 39.11685 | AF32: 39.88315 | AG32: 37.6314 | AH32: 38.3686 | AI32: 31.19445 | AJ32: 31.80555 | AK32: 28.7187 | AL32: 29.2813 | AM32: 25.7478 | AN32: 26.2522 | AO32: 20.30115 | AP32: 20.69885 | AQ32: 16.8351 | AR32: 17.1649 | AS32: 12.8739 | AT32: 13.1261 | AU32: 10.39815 | AV32: 10.60185 | AW32: 8.41755 | AX32: 8.58245 | AY32: 5.9418 | AZ32: 6.0582 | BA32: 4.9515 | BB32: 5.0485 | BC32: 22 | BD32: 18 | BE32: 3 | BF32: 1 | BG32: 12 | BH32: 1 | BI32: 65 | BJ32: 205 | BL32: 15 | BM32: 60 | BN32: 182 | BO32: 205 | BP32: 98 | BQ32: 193 | BR32: 324 | BS32: 86 | BU32: 77 | BV32: 162 | BW32: 483
B33: 03 | C33: 26 | D33: 6725 | E33: P.S. SANTA CRUZ | F33: 486 | H33: 240.6429 | I33: 245.3571 | K33: 3.9612 | L33: 4.0388 | M33: 3.9612 | N33: 4.0388 | O33: 3.9612 | P33: 4.0388 | Q33: 3.9612 | R33: 4.0388 | S33: 4.45635 | T33: 4.54365 | U33: 20.7963 | V33: 21.2037 | W33: 8.41755 | X33: 8.58245 | Y33: 26.7381 | Z33: 27.2619 | AA33: 9.40785 | AB33: 9.59215 | AC33: 22.28175 | AD33: 22.71825 | AE33: 21.29145 | AF33: 21.70855 | AG33: 20.7963 | AH33: 21.2037 | AI33: 17.33025 | AJ33: 17.66975 | AK33: 15.34965 | AL33: 15.65035 | AM33: 13.8642 | AN33: 14.1358 | AO33: 11.38845 | AP33: 11.61155 | AQ33: 9.40785 | AR33: 9.59215 | AS33: 7.42725 | AT33: 7.57275 | AU33: 5.44665 | AV33: 5.55335 | AW33: 4.45635 | AX33: 4.54365 | AY33: 2.9709 | AZ33: 3.0291 | BA33: 2.9709 | BB33: 3.0291 | BC33: 12 | BD33: 10 | BE33: 2 | BF33: 0 | BG33: 7 | BH33: 1 | BI33: 36 | BJ33: 113 | BL33: 8 | BM33: 33 | BN33: 100 | BO33: 113 | BP33: 54 | BQ33: 107 | BR33: 178 | BS33: 47 | BU33: 42 | BV33: 90 | BW33: 266
B34: 03 | C34: 27 | D34: 7757 | E34: P.S. HUANANGUI | F34: 442 | H34: 218.8563 | I34: 223.1437 | K34: 3.9612 | L34: 4.0388 | M34: 3.9612 | N34: 4.0388 | O34: 3.9612 | P34: 4.0388 | Q34: 3.9612 | R34: 4.0388 | S34: 3.9612 | T34: 4.0388 | U34: 18.8157 | V34: 19.1843 | W34: 7.42725 | X34: 7.57275 | Y34: 24.26235 | Z34: 24.73765 | AA34: 8.41755 | AB34: 8.58245 | AC34: 19.806 | AD34: 20.194 | AE34: 19.31085 | AF34: 19.68915 | AG34: 18.32055 | AH34: 18.67945 | AI34: 15.8448 | AJ34: 16.1552 | AK34: 14.35935 | AL34: 14.64065 | AM34: 12.8739 | AN34: 13.1261 | AO34: 10.39815 | AP34: 10.60185 | AQ34: 8.41755 | AR34: 8.58245 | AS34: 6.43695 | AT34: 6.56305 | AU34: 4.9515 | AV34: 5.0485 | AW34: 3.9612 | AX34: 4.0388 | AY34: 2.9709 | AZ34: 3.0291 | BA34: 2.47575 | BB34: 2.52425 | BC34: 11 | BD34: 9 | BE34: 2 | BF34: 0 | BG34: 6 | BH34: 0 | BI34: 33 | BJ34: 102 | BL34: 8 | BM34: 32 | BN34: 93 | BO34: 102 | BP34: 49 | BQ34: 96 | BR34: 162 | BS34: 42 | BU34: 38 | BV34: 81 | BW34: 241
A35: 150808 | C35: 28 | D35: 150808 | E35: DISTRITO PACCHO | F35: 2255 | H35: 1116.56325 | I35: 1138.43675 | K35: 20.30115 | L35: 20.69885 | M35: 19.31085 | N35: 19.68915 | O35: 19.31085 | P35: 19.68915 | Q35: 17.8254 | R35: 18.1746 | S35: 20.30115 | T35: 20.69885 | U35: 96.55425 | V35: 98.44575 | W35: 38.12655 | X35: 38.87345 | Y35: 124.7778 | Z35: 127.2222 | AA35: 43.07805 | AB35: 43.92195 | AC35: 100.51545 | AD35: 102.48455 | AE35: 99.52515 | AF35: 101.47485 | AG35: 95.56395 | AH35: 97.43605 | AI35: 79.71915 | AJ35: 81.28085 | AK35: 72.78705 | AL35: 74.21295 | AM35: 65.3598 | AN35: 66.6402 | AO35: 52.4859 | AP35: 53.5141 | AQ35: 43.07805 | AR35: 43.92195 | AS35: 33.6702 | AT35: 34.3298 | AU35: 26.24295 | AV35: 26.75705 | AW35: 20.30115 | AX35: 20.69885 | AY35: 14.35935 | AZ35: 14.64065 | BA35: 13.36905 | BB35: 13.63095 | BC35: 71 | BD35: 57 | BE35: 13 | BF35: 1 | BG35: 41 | BH35: 3 | BI35: 207 | BJ35: 645 | BL35: 41 | BM35: 155 | BN35: 468 | BO35: 524 | BP35: 252 | BQ35: 491 | BR35: 826 | BS35: 218 | BU35: 195 | BV35: 416 | BW35: 1230
B36: 05 | C36: 29 | D36: 5650 | E36: P.S. PACCHO | F36: 834 | H36: 412.9551 | I36: 421.0449 | K36: 7.42725 | L36: 7.57275 | M36: 6.9321 | N36: 7.0679 | O36: 6.9321 | P36: 7.0679 | Q36: 6.43695 | R36: 6.56305 | S36: 7.42725 | T36: 7.57275 | U36: 35.6508 | V36: 36.3492 | W36: 13.8642 | X36: 14.1358 | Y36: 46.04895 | Z36: 46.95105 | AA36: 15.8448 | AB36: 16.1552 | AC36: 37.13625 | AD36: 37.86375 | AE36: 37.13625 | AF36: 37.86375 | AG36: 35.6508 | AH36: 36.3492 | AI36: 29.709 | AJ36: 30.291 | AK36: 27.23325 | AL36: 27.76675 | AM36: 24.26235 | AN36: 24.73765 | AO36: 19.31085 | AP36: 19.68915 | AQ36: 15.8448 | AR36: 16.1552 | AS36: 12.37875 | AT36: 12.62125 | AU36: 9.903 | AV36: 10.097 | AW36: 7.42725 | AX36: 7.57275 | AY36: 5.44665 | AZ36: 5.55335 | BA36: 4.9515 | BB36: 5.0485 | BC36: 26 | BD36: 20 | BE36: 5 | BF36: 1 | BG36: 15 | BH36: 1 | BI36: 76 | BJ36: 238 | BL36: 15 | BM36: 56 | BN36: 171 | BO36: 193 | BP36: 93 | BQ36: 182 | BR36: 307 | BS36: 81 | BU36: 72 | BV36: 153 | BW36: 457
B37: 05 | C37: 30 | D37: 5651 | E37: P.S. LACSANGA | F37: 496 | H37: 245.5944 | I37: 250.4056 | K37: 4.45635 | L37: 4.54365 | M37: 4.45635 | N37: 4.54365 | O37: 4.45635 | P37: 4.54365 | Q37: 3.9612 | R37: 4.0388 | S37: 4.45635 | T37: 4.54365 | U37: 21.29145 | V37: 21.70855 | W37: 8.41755 | X37: 8.58245 | Y37: 27.23325 | Z37: 27.76675 | AA37: 9.40785 | AB37: 9.59215 | AC37: 22.28175 | AD37: 22.71825 | AE37: 21.7866 | AF37: 22.2134 | AG37: 20.7963 | AH37: 21.2037 | AI37: 17.33025 | AJ37: 17.66975 | AK37: 15.8448 | AL37: 16.1552 | AM37: 14.35935 | AN37: 14.64065 | AO37: 11.8836 | AP37: 12.1164 | AQ37: 9.40785 | AR37: 9.59215 | AS37: 7.42725 | AT37: 7.57275 | AU37: 5.9418 | AV37: 6.0582 | AW37: 4.45635 | AX37: 4.54365 | AY37: 2.9709 | AZ37: 3.0291 | BA37: 2.9709 | BB37: 3.0291 | BC37: 16 | BD37: 13 | BE37: 3 | BF37: 0 | BG37: 9 | BH37: 1 | BI37: 46 | BJ37: 142 | BL37: 9 | BM37: 35 | BN37: 104 | BO37: 115 | BP37: 55 | BQ37: 108 | BR37: 181 | BS37: 48 | BU37: 43 | BV37: 91 | BW37: 270
B38: 05 | C38: 31 | D38: 5653 | E38: P.S. AYARANGA | F38: 429 | H38: 212.41935 | I38: 216.58065 | K38: 3.9612 | L38: 4.0388 | M38: 3.46605 | N38: 3.53395 | O38: 3.46605 | P38: 3.53395 | Q38: 3.46605 | R38: 3.53395 | S38: 3.9612 | T38: 4.0388 | U38: 18.32055 | V38: 18.67945 | W38: 7.42725 | X38: 7.57275 | Y38: 23.7672 | Z38: 24.2328 | AA38: 8.41755 | AB38: 8.58245 | AC38: 18.8157 | AD38: 19.1843 | AE38: 18.8157 | AF38: 19.1843 | AG38: 18.32055 | AH38: 18.67945 | AI38: 15.34965 | AJ38: 15.65035 | AK38: 13.8642 | AL38: 14.1358 | AM38: 12.37875 | AN38: 12.62125 | AO38: 9.903 | AP38: 10.097 | AQ38: 8.41755 | AR38: 8.58245 | AS38: 6.43695 | AT38: 6.56305 | AU38: 4.45635 | AV38: 4.54365 | AW38: 3.9612 | AX38: 4.0388 | AY38: 2.9709 | AZ38: 3.0291 | BA38: 2.47575 | BB38: 2.52425 | BC38: 13 | BD38: 11 | BE38: 2 | BF38: 0 | BG38: 8 | BH38: 0 | BI38: 39 | BJ38: 123 | BL38: 8 | BM38: 29 | BN38: 89 | BO38: 100 | BP38: 48 | BQ38: 93 | BR38: 158 | BS38: 41 | BU38: 37 | BV38: 80 | BW38: 234
B39: 05 | C39: 32 | D39: 5652 | E39: P.S. MUZGA | F39: 496 | H39: 245.5944 | I39: 250.4056 | K39: 4.45635 | L39: 4.54365 | M39: 4.45635 | N39: 4.54365 | O39: 4.45635 | P39: 4.54365 | Q39: 3.9612 | R39: 4.0388 | S39: 4.45635 | T39: 4.54365 | U39: 21.29145 | V39: 21.70855 | W39: 8.41755 | X39: 8.58245 | Y39: 27.7284 | Z39: 28.2716 | AA39: 9.40785 | AB39: 9.59215 | AC39: 22.28175 | AD39: 22.71825 | AE39: 21.7866 | AF39: 22.2134 | AG39: 20.7963 | AH39: 21.2037 | AI39: 17.33025 | AJ39: 17.66975 | AK39: 15.8448 | AL39: 16.1552 | AM39: 14.35935 | AN39: 14.64065 | AO39: 11.38845 | AP39: 11.61155 | AQ39: 9.40785 | AR39: 9.59215 | AS39: 7.42725 | AT39: 7.57275 | AU39: 5.9418 | AV39: 6.0582 | AW39: 4.45635 | AX39: 4.54365 | AY39: 2.9709 | AZ39: 3.0291 | BA39: 2.9709 | BB39: 3.0291 | BC39: 16 | BD39: 13 | BE39: 3 | BF39: 0 | BG39: 9 | BH39: 1 | BI39: 46 | BJ39: 142 | BL39: 9 | BM39: 35 | BN39: 104 | BO39: 116 | BP39: 56 | BQ39: 108 | BR39: 180 | BS39: 48 | BU39: 43 | BV39: 92 | BW39: 269
A40: 150809 | C40: 33 | D40: 150809 | E40: DISTRITO SANTA LEONOR | F40: 1669 | H40: 826.40535 | I40: 842.59465 | K40: 14.8545 | L40: 15.1455 | M40: 14.35935 | N40: 14.64065 | O40: 14.35935 | P40: 14.64065 | Q40: 15.8448 | R40: 16.1552 | S40: 12.8739 | T40: 13.1261 | U40: 71.3016 | V40: 72.6984 | W40: 28.7187 | X40: 29.2813 | Y40: 91.60275 | Z40: 93.39725 | AA40: 32.18475 | AB40: 32.81525 | AC40: 74.2725 | AD40: 75.7275 | AE40: 73.77735 | AF40: 75.22265 | AG40: 70.80645 | AH40: 72.19355 | AI40: 58.92285 | AJ40: 60.07715 | AK40: 53.97135 | AL40: 55.02865 | AM40: 48.5247 | AN40: 49.4753 | AO40: 39.11685 | AP40: 39.88315 | AQ40: 31.6896 | AR40: 32.3104 | AS40: 24.7575 | AT40: 25.2425 | AU40: 19.31085 | AV40: 19.68915 | AW40: 14.8545 | AX40: 15.1455 | AY40: 10.8933 | AZ40: 11.1067 | BA40: 9.40785 | BB40: 9.59215 | BC40: 53 | BD40: 42 | BE40: 10 | BF40: 1 | BG40: 30 | BH40: 2 | BI40: 153 | BJ40: 477 | BL40: 30 | BM40: 116 | BN40: 348 | BO40: 387 | BP40: 185 | BQ40: 364 | BR40: 612 | BS40: 160 | BU40: 144 | BV40: 308 | BW40: 911
B41: 05 | C41: 34 | D41: 5645 | E41: P.S. CHIUCHIN | F41: 1018 | H41: 504.0627 | I41: 513.9373 | K41: 8.9127 | L41: 9.0873 | M41: 8.9127 | N41: 9.0873 | O41: 8.9127 | P41: 9.0873 | Q41: 9.40785 | R41: 9.59215 | S41: 7.9224 | T41: 8.0776 | U41: 43.5732 | V41: 44.4268 | W41: 17.33025 | X41: 17.66975 | Y41: 55.95195 | Z41: 57.04805 | AA41: 19.806 | AB41: 20.194 | AC41: 45.05865 | AD41: 45.94135 | AE41: 45.05865 | AF41: 45.94135 | AG41: 43.07805 | AH41: 43.92195 | AI41: 36.14595 | AJ41: 36.85405 | AK41: 32.6799 | AL41: 33.3201 | AM41: 29.709 | AN41: 30.291 | AO41: 23.7672 | AP41: 24.2328 | AQ41: 19.31085 | AR41: 19.68915 | AS41: 15.34965 | AT41: 15.65035 | AU41: 11.8836 | AV41: 12.1164 | AW41: 8.9127 | AX41: 9.0873 | AY41: 6.43695 | AZ41: 6.56305 | BA41: 5.9418 | BB41: 6.0582 | BC41: 33 | BD41: 26 | BE41: 6 | BF41: 1 | BG41: 18 | BH41: 1 | BI41: 93 | BJ41: 291 | BL41: 18 | BM41: 71 | BN41: 212 | BO41: 236 | BP41: 113 | BQ41: 222 | BR41: 373 | BS41: 98 | BU41: 88 | BV41: 188 | BW41: 555
B42: 05 | C42: 35 | D42: 5646 | E42: P.S. PARQUIN | F42: 467 | H42: 231.23505 | I42: 235.76495 | K42: 4.45635 | L42: 4.54365 | M42: 3.9612 | N42: 4.0388 | O42: 3.9612 | P42: 4.0388 | Q42: 4.45635 | R42: 4.54365 | S42: 3.46605 | T42: 3.53395 | U42: 19.806 | V42: 20.194 | W42: 8.41755 | X42: 8.58245 | Y42: 25.7478 | Z42: 26.2522 | AA42: 8.9127 | AB42: 9.0873 | AC42: 20.7963 | AD42: 21.2037 | AE42: 20.7963 | AF42: 21.2037 | AG42: 19.806 | AH42: 20.194 | AI42: 16.33995 | AJ42: 16.66005 | AK42: 15.34965 | AL42: 15.65035 | AM42: 13.36905 | AN42: 13.63095 | AO42: 10.8933 | AP42: 11.1067 | AQ42: 8.9127 | AR42: 9.0873 | AS42: 6.43695 | AT42: 6.56305 | AU42: 5.44665 | AV42: 5.55335 | AW42: 4.45635 | AX42: 4.54365 | AY42: 2.9709 | AZ42: 3.0291 | BA42: 2.47575 | BB42: 2.52425 | BC42: 14 | BD42: 11 | BE42: 3 | BF42: 0 | BG42: 9 | BH42: 1 | BI42: 43 | BJ42: 134 | BL42: 9 | BM42: 32 | BN42: 98 | BO42: 109 | BP42: 52 | BQ42: 102 | BR42: 171 | BS42: 44 | BU42: 40 | BV42: 87 | BW42: 255
B43: 05 | C43: 36 | D43: 5647 | E43: P.S. JUCUL | F43: 184 | H43: 91.1076 | I43: 92.8924 | K43: 1.48545 | L43: 1.51455 | M43: 1.48545 | N43: 1.51455 | O43: 1.48545 | P43: 1.51455 | Q43: 1.9806 | R43: 2.0194 | S43: 1.48545 | T43: 1.51455 | U43: 7.9224 | V43: 8.0776 | W43: 2.9709 | X43: 3.0291 | Y43: 9.903 | Z43: 10.097 | AA43: 3.46605 | AB43: 3.53395 | AC43: 8.41755 | AD43: 8.58245 | AE43: 7.9224 | AF43: 8.0776 | AG43: 7.9224 | AH43: 8.0776 | AI43: 6.43695 | AJ43: 6.56305 | AK43: 5.9418 | AL43: 6.0582 | AM43: 5.44665 | AN43: 5.55335 | AO43: 4.45635 | AP43: 4.54365 | AQ43: 3.46605 | AR43: 3.53395 | AS43: 2.9709 | AT43: 3.0291 | AU43: 1.9806 | AV43: 2.0194 | AW43: 1.48545 | AX43: 1.51455 | AY43: 1.48545 | AZ43: 1.51455 | BA43: 0.9903 | BB43: 1.0097 | BC43: 6 | BD43: 5 | BE43: 1 | BF43: 0 | BG43: 3 | BH43: 0 | BI43: 17 | BJ43: 52 | BL43: 3 | BM43: 13 | BN43: 38 | BO43: 42 | BP43: 20 | BQ43: 40 | BR43: 68 | BS43: 18 | BU43: 16 | BV43: 33 | BW43: 101
A44: 150810 | C44: 37 | D44: 150810 | E44: DISTRITO SANTA MARIA | F44: 30399 | H44: 15052.06485 | I44: 15346.93515 | K44: 261.93435 | L44: 267.06565 | M44: 260.94405 | N44: 266.05595 | O44: 260.94405 | P44: 266.05595 | Q44: 260.94405 | R44: 266.05595 | S44: 261.4392 | T44: 266.5608 | U44: 1298.77845 | V44: 1324.22155 | W44: 515.45115 | X44: 525.54885 | Y44: 1674.5973 | Z44: 1707.4027 | AA44: 583.2867 | AB44: 594.7133 | AC44: 1355.7207 | AD44: 1382.2793 | AE44: 1342.35165 | AF44: 1368.64835 | AG44: 1287.39 | AH44: 1312.61 | AI44: 1076.4561 | AJ44: 1097.5439 | AK44: 983.3679 | AL44: 1002.6321 | AM44: 881.86215 | AN44: 899.13785 | AO44: 709.0548 | AP44: 722.9452 | AQ44: 579.82065 | AR44: 591.17935 | AS44: 453.06225 | AT44: 461.93775 | AU44: 353.5371 | AV44: 360.4629 | AW44: 274.80825 | AX44: 280.19175 | AY44: 196.0794 | AZ44: 199.9206 | BA44: 180.2346 | BB44: 183.7654 | BC44: 927 | BD44: 753 | BE44: 158 | BF44: 16 | BG44: 532 | BH44: 41 | BI44: 2789 | BJ44: 8693 | BL44: 529 | BM44: 2109 | BN44: 6302 | BO44: 7046 | BP44: 3382 | BQ44: 6627 | BR44: 11144 | BS44: 2944 | BU44: 2623 | BV44: 5601 | BW44: 16593
B45: 02 | C45: 38 | D45: 5668 | E45: C.S. SANTA MARIA | F45: 8511 | H45: 4214.22165 | I45: 4296.77835 | K45: 73.2822 | L45: 74.7178 | M45: 73.2822 | N45: 74.7178 | O45: 73.2822 | P45: 74.7178 | Q45: 73.2822 | R45: 74.7178 | S45: 73.2822 | T45: 74.7178 | U45: 363.4401 | V45: 370.5599 | W45: 144.08865 | X45: 146.91135 | Y45: 468.90705 | Z45: 478.09295 | AA45: 163.3995 | AB45: 166.6005 | AC45: 379.2849 | AD45: 386.7151 | AE45: 375.3237 | AF45: 382.6763 | AG45: 360.4692 | AH45: 367.5308 | AI45: 301.54635 | AJ45: 307.45365 | AK45: 275.3034 | AL45: 280.6966 | AM45: 247.07985 | AN45: 251.92015 | AO45: 198.55515 | AP45: 202.44485 | AQ45: 162.4092 | AR45: 165.5908 | AS45: 126.7584 | AT45: 129.2416 | AU45: 99.03 | AV45: 100.97 | AW45: 76.74825 | AX45: 78.25175 | AY45: 54.96165 | AZ45: 56.03835 | BA45: 50.5053 | BB45: 51.4947 | BC45: 259 | BD45: 211 | BE45: 44 | BF45: 4 | BG45: 149 | BH45: 11 | BI45: 781 | BJ45: 2434 | BL45: 148 | BM45: 592 | BN45: 1765 | BO45: 1972 | BP45: 947 | BQ45: 1854 | BR45: 3121 | BS45: 824 | BU45: 734 | BV45: 1568 | BW45: 4645
B46: 02 | C46: 39 | D46: 5669 | E46: P.S. CHONTA | F46: 4560 | H46: 2257.884 | I46: 2302.116 | K46: 39.11685 | L46: 39.88315 | M46: 39.11685 | N46: 39.88315 | O46: 39.11685 | P46: 39.88315 | Q46: 39.11685 | R46: 39.88315 | S46: 39.612 | T46: 40.388 | U46: 194.59395 | V46: 198.40605 | W46: 77.2434 | X46: 78.7566 | Y46: 251.04105 | Z46: 255.95895 | AA46: 87.64155 | AB46: 89.35845 | AC46: 203.50665 | AD46: 207.49335 | AE46: 201.52605 | AF46: 205.47395 | AG46: 193.1085 | AH46: 196.8915 | AI46: 161.4189 | AJ46: 164.5811 | AK46: 147.5547 | AL46: 150.4453 | AM46: 132.20505 | AN46: 134.79495 | AO46: 106.45725 | AP46: 108.54275 | AQ46: 87.1464 | AR46: 88.8536 | AS46: 67.83555 | AT46: 69.16445 | AU46: 52.98105 | AV46: 54.01895 | AW46: 41.09745 | AX46: 41.90255 | AY46: 29.21385 | AZ46: 29.78615 | BA46: 27.23325 | BB46: 27.76675 | BC46: 139 | BD46: 113 | BE46: 24 | BF46: 2 | BG46: 80 | BH46: 6 | BI46: 418 | BJ46: 1304 | BL46: 79 | BM46: 317 | BN46: 945 | BO46: 1056 | BP46: 507 | BQ46: 995 | BR46: 1672 | BS46: 441 | BU46: 393 | BV46: 840 | BW46: 2490
B47: 02 | C47: 40 | D47: 5671 | E47: P.S. ZAPATA | F47: 2432 | H47: 1204.2048 | I47: 1227.7952 | K47: 20.7963 | L47: 21.2037 | M47: 20.7963 | N47: 21.2037 | O47: 20.7963 | P47: 21.2037 | Q47: 20.7963 | R47: 21.2037 | S47: 20.7963 | T47: 21.2037 | U47: 104.47665 | V47: 106.52335 | W47: 41.09745 | X47: 41.90255 | Y47: 134.18565 | Z47: 136.81435 | AA47: 46.5441 | AB47: 47.4559 | AC47: 108.43785 | AD47: 110.56215 | AE47: 107.44755 | AF47: 109.55245 | AG47: 102.9912 | AH47: 105.0088 | AI47: 86.1561 | AJ47: 87.8439 | AK47: 78.72885 | AL47: 80.27115 | AM47: 70.3113 | AN47: 71.6887 | AO47: 56.94225 | AP47: 58.05775 | AQ47: 46.5441 | AR47: 47.4559 | AS47: 36.14595 | AT47: 36.85405 | AU47: 28.22355 | AV47: 28.77645 | AW47: 22.28175 | AX47: 22.71825 | AY47: 15.8448 | AZ47: 16.1552 | BA47: 13.8642 | BB47: 14.1358 | BC47: 75 | BD47: 60 | BE47: 13 | BF47: 2 | BG47: 43 | BH47: 4 | BI47: 224 | BJ47: 696 | BL47: 42 | BM47: 168 | BN47: 504 | BO47: 565 | BP47: 271 | BQ47: 530 | BR47: 892 | BS47: 235 | BU47: 211 | BV47: 448 | BW47: 1328
B48: 02 | C48: 41 | D48: 5670 | E48: P.S. AMADO VELASQUEZ | F48: 7904 | H48: 3913.6656 | I48: 3990.3344 | K48: 68.3307 | L48: 69.6693 | M48: 67.83555 | N48: 69.16445 | O48: 67.83555 | P48: 69.16445 | Q48: 67.83555 | R48: 69.16445 | S48: 67.83555 | T48: 69.16445 | U48: 337.6923 | V48: 344.3077 | W48: 134.6808 | X48: 137.3192 | Y48: 435.23685 | Z48: 443.76315 | AA48: 151.5159 | AB48: 154.4841 | AC48: 352.5468 | AD48: 359.4532 | AE48: 349.08075 | AF48: 355.91925 | AG48: 334.7214 | AH48: 341.2786 | AI48: 279.75975 | AJ48: 285.24025 | AK48: 255.4974 | AL48: 260.5026 | AM48: 229.25445 | AN48: 233.74555 | AO48: 184.1958 | AP48: 187.8042 | AQ48: 150.5256 | AR48: 153.4744 | AS48: 117.8457 | AT48: 120.1543 | AU48: 92.0979 | AV48: 93.9021 | AW48: 71.3016 | AX48: 72.6984 | AY48: 51.00045 | AZ48: 51.99955 | BA48: 47.03925 | BB48: 47.96075 | BC48: 241 | BD48: 196 | BE48: 41 | BF48: 4 | BG48: 138 | BH48: 11 | BI48: 725 | BJ48: 2260 | BL48: 138 | BM48: 548 | BN48: 1640 | BO48: 1833 | BP48: 879 | BQ48: 1723 | BR48: 2896 | BS48: 766 | BU48: 682 | BV48: 1457 | BW48: 4313
B49: 02 | C49: 42 | D49: 5672 | E49: P.S. SAN BARTOLOME | F49: 6992 | H49: 3462.0888 | I49: 3529.9112 | K49: 60.4083 | L49: 61.5917 | M49: 59.91315 | N49: 61.08685 | O49: 59.91315 | P49: 61.08685 | Q49: 59.91315 | R49: 61.08685 | S49: 59.91315 | T49: 61.08685 | U49: 298.57545 | V49: 304.42455 | W49: 118.34085 | X49: 120.65915 | Y49: 385.2267 | Z49: 392.7733 | AA49: 134.18565 | AB49: 136.81435 | AC49: 311.9445 | AD49: 318.0555 | AE49: 308.9736 | AF49: 315.0264 | AG49: 296.0997 | AH49: 301.9003 | AI49: 247.575 | AJ49: 252.425 | AK49: 226.28355 | AL49: 230.71645 | AM49: 203.0115 | AN49: 206.9885 | AO49: 162.90435 | AP49: 166.09565 | AQ49: 133.19535 | AR49: 135.80465 | AS49: 104.47665 | AT49: 106.52335 | AU49: 81.2046 | AV49: 82.7954 | AW49: 63.3792 | AX49: 64.6208 | AY49: 45.05865 | AZ49: 45.94135 | BA49: 41.5926 | BB49: 42.4074 | BC49: 213 | BD49: 173 | BE49: 36 | BF49: 4 | BG49: 122 | BH49: 9 | BI49: 641 | BJ49: 1999 | BL49: 122 | BM49: 484 | BN49: 1448 | BO49: 1620 | BP49: 778 | BQ49: 1525 | BR49: 2563 | BS49: 678 | BU49: 603 | BV49: 1288 | BW49: 3817
A50: 150811 | C50: 43 | D50: 150811 | E50: DISTRITO SAYAN | F50: 24103 | H50: 11934.60045 | I50: 12168.39955 | K50: 209.44845 | L50: 213.55155 | M50: 206.47755 | N50: 210.52245 | O50: 206.9727 | P50: 211.0273 | Q50: 208.9533 | R50: 213.0467 | S50: 204.9921 | T50: 209.0079 | U50: 1028.9217 | V50: 1049.0783 | W50: 408.49875 | X50: 416.50125 | Y50: 1327.9923 | Z50: 1354.0077 | AA50: 462.4701 | AB50: 471.5299 | AC50: 1074.97065 | AD50: 1096.02935 | AE50: 1064.07735 | AF50: 1084.92265 | AG50: 1020.9993 | AH50: 1041.0007 | AI50: 853.6386 | AJ50: 870.3614 | AK50: 779.86125 | AL50: 795.13875 | AM50: 699.1518 | AN50: 712.8482 | AO50: 561.99525 | AP50: 573.00475 | AQ50: 459.99435 | AR50: 469.00565 | AS50: 359.4789 | AT50: 366.5211 | AU50: 280.2549 | AV50: 285.7451 | AW50: 217.866 | AX50: 222.134 | AY50: 155.4771 | AZ50: 158.5229 | BA50: 142.10805 | BB50: 144.89195 | BC50: 741 | BD50: 602 | BE50: 126 | BF50: 13 | BG50: 425 | BH50: 32 | BI50: 2211 | BJ50: 6893 | BL50: 423 | BM50: 1671 | BN50: 4997 | BO50: 5585 | BP50: 2682 | BQ50: 5254 | BR50: 8837 | BS50: 2333 | BU50: 2078 | BV50: 4441 | BW50: 13157
B51: 03 | C51: 44 | D51: 5780 | E51: C.S. SAYAN | F51: 9882 | H51: 4893.0723 | I51: 4988.9277 | K51: 85.66095 | L51: 87.33905 | M51: 84.67065 | N51: 86.32935 | O51: 84.67065 | P51: 86.32935 | Q51: 85.1658 | R51: 86.8342 | S51: 84.1755 | T51: 85.8245 | U51: 421.8678 | V51: 430.1322 | W51: 167.3607 | X51: 170.6393 | Y51: 544.665 | Z51: 555.335 | AA51: 190.1376 | AB51: 193.8624 | AC51: 440.6835 | AD51: 449.3165 | AE51: 436.22715 | AF51: 444.77285 | AG51: 418.40175 | AH51: 426.59825 | AI51: 350.07105 | AJ51: 356.92895 | AK51: 319.8669 | AL51: 326.1331 | AM51: 286.69185 | AN51: 292.30815 | AO51: 230.24475 | AP51: 234.75525 | AQ51: 188.65215 | AR51: 192.34785 | AS51: 147.5547 | AT51: 150.4453 | AU51: 114.8748 | AV51: 117.1252 | AW51: 89.127 | AX51: 90.873 | AY51: 63.87435 | AZ51: 65.12565 | BA51: 58.4277 | BB51: 59.5723 | BC51: 304 | BD51: 247 | BE51: 52 | BF51: 5 | BG51: 174 | BH51: 13 | BI51: 907 | BJ51: 2825 | BL51: 173 | BM51: 684 | BN51: 2047 | BO51: 2290 | BP51: 1100 | BQ51: 2155 | BR51: 3623 | BS51: 957 | BU51: 852 | BV51: 1822 | BW51: 5394
B52: 03 | C52: 45 | D52: 5774 | E52: P.S. 9 DE OCTUBRE | F52: 5063 | H52: 2506.94445 | I52: 2556.05555 | K52: 44.06835 | L52: 44.93165 | M52: 43.5732 | N52: 44.4268 | O52: 43.5732 | P52: 44.4268 | Q52: 44.06835 | R52: 44.93165 | S52: 43.07805 | T52: 43.92195 | U52: 215.8854 | V52: 220.1146 | W52: 85.66095 | X52: 87.33905 | Y52: 279.2646 | Z52: 284.7354 | AA52: 97.0494 | AB52: 98.9506 | AC52: 225.7884 | AD52: 230.2116 | AE52: 223.8078 | AF52: 228.1922 | AG52: 214.39995 | AH52: 218.60005 | AI52: 179.2443 | AJ52: 182.7557 | AK52: 163.89465 | AL52: 167.10535 | AM52: 147.05955 | AN52: 149.94045 | AO52: 117.8457 | AP52: 120.1543 | AQ52: 96.55425 | AR52: 98.44575 | AS52: 75.2628 | AT52: 76.7372 | AU52: 58.92285 | AV52: 60.07715 | AW52: 45.5538 | AX52: 46.4462 | AY52: 32.6799 | AZ52: 33.3201 | BA52: 29.709 | BB52: 30.291 | BC52: 155 | BD52: 126 | BE52: 26 | BF52: 3 | BG52: 89 | BH52: 7 | BI52: 464 | BJ52: 1448 | BL52: 89 | BM52: 352 | BN52: 1050 | BO52: 1173 | BP52: 564 | BQ52: 1104 | BR52: 1856 | BS52: 489 | BU52: 436 | BV52: 933 | BW52: 2764
B53: 03 | C53: 46 | D53: 5781 | E53: P.S. CHAMBARA | F53: 1205 | H53: 596.65575 | I53: 608.34425 | K53: 10.39815 | L53: 10.60185 | M53: 10.39815 | N53: 10.60185 | O53: 10.39815 | P53: 10.60185 | Q53: 10.39815 | R53: 10.60185 | S53: 10.39815 | T53: 10.60185 | U53: 51.4956 | V53: 52.5044 | W53: 20.30115 | X53: 20.69885 | Y53: 66.3501 | Z53: 67.6499 | AA53: 23.27205 | AB53: 23.72795 | AC53: 53.97135 | AD53: 55.02865 | AE53: 52.98105 | AF53: 54.01895 | AG53: 51.4956 | AH53: 52.5044 | AI53: 42.5829 | AJ53: 43.4171 | AK53: 38.6217 | AL53: 39.3783 | AM53: 35.15565 | AN53: 35.84435 | AO53: 28.22355 | AP53: 28.77645 | AQ53: 22.7769 | AR53: 23.2231 | AS53: 17.8254 | AT53: 18.1746 | AU53: 13.36905 | AV53: 13.63095 | AW53: 11.38845 | AX53: 11.61155 | AY53: 7.9224 | AZ53: 8.0776 | BA53: 6.9321 | BB53: 7.0679 | BC53: 37 | BD53: 30 | BE53: 6 | BF53: 1 | BG53: 21 | BH53: 2 | BI53: 111 | BJ53: 345 | BL53: 21 | BM53: 84 | BN53: 250 | BO53: 279 | BP53: 134 | BQ53: 263 | BR53: 442 | BS53: 116 | BU53: 104 | BV53: 222 | BW53: 658
B54: 03 | C54: 47 | D54: 5775 | E54: P.S. LA MERCED | F54: 2410 | H54: 1193.3115 | I54: 1216.6885 | K54: 20.7963 | L54: 21.2037 | M54: 20.30115 | N54: 20.69885 | O54: 20.30115 | P54: 20.69885 | Q54: 20.7963 | R54: 21.2037 | S54: 20.30115 | T54: 20.69885 | U54: 103.48635 | V54: 105.51365 | W54: 41.09745 | X54: 41.90255 | Y54: 132.7002 | Z54: 135.2998 | AA54: 46.04895 | AB54: 46.95105 | AC54: 107.44755 | AD54: 109.55245 | AE54: 106.45725 | AF54: 108.54275 | AG54: 102.0009 | AH54: 103.9991 | AI54: 85.1658 | AJ54: 86.8342 | AK54: 78.2337 | AL54: 79.7663 | AM54: 69.81615 | AN54: 71.18385 | AO54: 56.4471 | AP54: 57.5529 | AQ54: 46.04895 | AR54: 46.95105 | AS54: 36.14595 | AT54: 36.85405 | AU54: 28.22355 | AV54: 28.77645 | AW54: 21.7866 | AX54: 22.2134 | AY54: 15.34965 | AZ54: 15.65035 | BA54: 14.35935 | BB54: 14.64065 | BC54: 74 | BD54: 60 | BE54: 13 | BF54: 1 | BG54: 43 | BH54: 3 | BI54: 221 | BJ54: 689 | BL54: 42 | BM54: 165 | BN54: 499 | BO54: 560 | BP54: 268 | BQ54: 525 | BR54: 884 | BS54: 234 | BU54: 209 | BV54: 444 | BW54: 1316
B55: 03 | C55: 48 | D55: 5776 | E55: P.S. LA VILLA | F55: 3856 | H55: 1909.2984 | I55: 1946.7016 | K55: 33.6702 | L55: 34.3298 | M55: 32.6799 | N55: 33.3201 | O55: 33.17505 | P55: 33.82495 | Q55: 33.6702 | R55: 34.3298 | S55: 32.6799 | T55: 33.3201 | U55: 164.3898 | V55: 167.6102 | W55: 65.3598 | X55: 66.6402 | Y55: 212.41935 | Z55: 216.58065 | AA55: 73.77735 | AB55: 75.22265 | AC55: 171.81705 | AD55: 175.18295 | AE55: 170.3316 | AF55: 173.6684 | AG55: 163.3995 | AH55: 166.6005 | AI55: 136.6614 | AJ55: 139.3386 | AK55: 124.7778 | AL55: 127.2222 | AM55: 111.9039 | AN55: 114.0961 | AO55: 90.1173 | AP55: 91.8827 | AQ55: 73.77735 | AR55: 75.22265 | AS55: 57.4374 | AT55: 58.5626 | AU55: 45.05865 | AV55: 45.94135 | AW55: 34.6605 | AX55: 35.3395 | AY55: 24.7575 | AZ55: 25.2425 | BA55: 22.7769 | BB55: 23.2231 | BC55: 118 | BD55: 96 | BE55: 20 | BF55: 2 | BG55: 68 | BH55: 5 | BI55: 354 | BJ55: 1103 | BL55: 68 | BM55: 267 | BN55: 799 | BO55: 893 | BP55: 429 | BQ55: 840 | BR55: 1415 | BS55: 373 | BU55: 332 | BV55: 710 | BW55: 2106
B56: 03 | C56: 49 | D56: 5777 | E56: P.S. EL AHORCADO | F56: 964 | H56: 477.3246 | I56: 486.6754 | K56: 8.41755 | L56: 8.58245 | M56: 8.41755 | N56: 8.58245 | O56: 8.41755 | P56: 8.58245 | Q56: 8.41755 | R56: 8.58245 | S56: 8.41755 | T56: 8.58245 | U56: 41.09745 | V56: 41.90255 | W56: 16.33995 | X56: 16.66005 | Y56: 52.98105 | Z56: 54.01895 | AA56: 18.32055 | AB56: 18.67945 | AC56: 43.07805 | AD56: 43.92195 | AE56: 42.5829 | AF56: 43.4171 | AG56: 40.6023 | AH56: 41.3977 | AI56: 34.16535 | AJ56: 34.83465 | AK56: 31.19445 | AL56: 31.80555 | AM56: 27.7284 | AN56: 28.2716 | AO56: 22.28175 | AP56: 22.71825 | AQ56: 18.32055 | AR56: 18.67945 | AS56: 14.35935 | AT56: 14.64065 | AU56: 11.38845 | AV56: 11.61155 | AW56: 8.9127 | AX56: 9.0873 | AY56: 6.43695 | AZ56: 6.56305 | BA56: 5.44665 | BB56: 5.55335 | BC56: 30 | BD56: 24 | BE56: 5 | BF56: 1 | BG56: 17 | BH56: 1 | BI56: 88 | BJ56: 276 | BL56: 17 | BM56: 68 | BN56: 201 | BO56: 223 | BP56: 107 | BQ56: 210 | BR56: 352 | BS56: 94 | BU56: 83 | BV56: 177 | BW56: 525
B57: 03 | C57: 50 | D57: 6726 | E57: P.S. LA UNION | F57: 723 | H57: 357.99345 | I57: 365.00655 | K57: 6.43695 | L57: 6.56305 | M57: 6.43695 | N57: 6.56305 | O57: 6.43695 | P57: 6.56305 | Q57: 6.43695 | R57: 6.56305 | S57: 5.9418 | T57: 6.0582 | U57: 30.6993 | V57: 31.3007 | W57: 12.37875 | X57: 12.62125 | Y57: 39.612 | Z57: 40.388 | AA57: 13.8642 | AB57: 14.1358 | AC57: 32.18475 | AD57: 32.81525 | AE57: 31.6896 | AF57: 32.3104 | AG57: 30.6993 | AH57: 31.3007 | AI57: 25.7478 | AJ57: 26.2522 | AK57: 23.27205 | AL57: 23.72795 | AM57: 20.7963 | AN57: 21.2037 | AO57: 16.8351 | AP57: 17.1649 | AQ57: 13.8642 | AR57: 14.1358 | AS57: 10.8933 | AT57: 11.1067 | AU57: 8.41755 | AV57: 8.58245 | AW57: 6.43695 | AX57: 6.56305 | AY57: 4.45635 | AZ57: 4.54365 | BA57: 4.45635 | BB57: 4.54365 | BC57: 23 | BD57: 19 | BE57: 4 | BF57: 0 | BG57: 13 | BH57: 1 | BI57: 66 | BJ57: 207 | BL57: 13 | BM57: 51 | BN57: 151 | BO57: 167 | BP57: 80 | BQ57: 157 | BR57: 265 | BS57: 70 | BU57: 62 | BV57: 133 | BW57: 394
A58: 150812 | C58: 51 | D58: 150812 | E58: DISTRITO VEGUETA | F58: 20046 | H58: 9925.7769 | I58: 10120.2231 | K58: 172.80735 | L58: 176.19265 | M58: 171.81705 | N58: 175.18295 | O58: 172.3122 | P58: 175.6878 | Q58: 171.3219 | R58: 174.6781 | S58: 173.3025 | T58: 176.6975 | U58: 856.6095 | V58: 873.3905 | W58: 339.6729 | X58: 346.3271 | Y58: 1104.67965 | Z58: 1126.32035 | AA58: 384.73155 | AB58: 392.26845 | AC58: 893.74575 | AD58: 911.25425 | AE58: 884.83305 | AF58: 902.16695 | AG58: 849.18225 | AH58: 865.81775 | AI58: 710.0451 | AJ58: 723.9549 | AK58: 648.6465 | AL58: 661.3535 | AM58: 581.80125 | AN58: 593.19875 | AO58: 467.4216 | AP58: 476.5784 | AQ58: 382.2558 | AR58: 389.7442 | AS58: 299.0706 | AT58: 304.9294 | AU58: 233.21565 | AV58: 237.78435 | AW58: 181.2249 | AX58: 184.7751 | AY58: 129.23415 | AZ58: 131.76585 | BA58: 117.8457 | BB58: 120.1543 | BC58: 613 | BD58: 498 | BE58: 104 | BF58: 11 | BG58: 351 | BH58: 27 | BI58: 1839 | BJ58: 5732 | BL58: 349 | BM58: 1391 | BN58: 4156 | BO58: 4647 | BP58: 2231 | BQ58: 4369 | BR58: 7350 | BS58: 1940 | BU58: 1730 | BV58: 3694 | BW58: 10942
B59: 04 | C59: 52 | D59: 5673 | E59: C.S. VEGUETA | F59: 6014 | H59: 2977.8321 | I59: 3036.1679 | K59: 51.99075 | L59: 53.00925 | M59: 51.4956 | N59: 52.5044 | O59: 51.4956 | P59: 52.5044 | Q59: 51.4956 | R59: 52.5044 | S59: 51.99075 | T59: 53.00925 | U59: 256.98285 | V59: 262.01715 | W59: 102.0009 | X59: 103.9991 | Y59: 331.25535 | Z59: 337.74465 | AA59: 115.36995 | AB59: 117.63005 | AC59: 268.3713 | AD59: 273.6287 | AE59: 265.4004 | AF59: 270.5996 | AG59: 255.00225 | AH59: 259.99775 | AI59: 212.9145 | AJ59: 217.0855 | AK59: 194.59395 | AL59: 198.40605 | AM59: 174.78795 | AN59: 178.21205 | AO59: 140.12745 | AP59: 142.87255 | AQ59: 114.8748 | AR59: 117.1252 | AS59: 89.62215 | AT59: 91.37785 | AU59: 69.81615 | AV59: 71.18385 | AW59: 54.4665 | AX59: 55.5335 | AY59: 38.6217 | AZ59: 39.3783 | BA59: 35.15565 | BB59: 35.84435 | BC59: 182 | BD59: 148 | BE59: 31 | BF59: 3 | BG59: 105 | BH59: 8 | BI59: 552 | BJ59: 1719 | BL59: 105 | BM59: 417 | BN59: 1247 | BO59: 1394 | BP59: 669 | BQ59: 1311 | BR59: 2206 | BS59: 581 | BU59: 519 | BV59: 1108 | BW59: 3284
B60: 04 | C60: 53 | D60: 5674 | E60: P.S. MAZO | F60: 2005 | H60: 992.77575 | I60: 1012.22425 | K60: 17.33025 | L60: 17.66975 | M60: 17.33025 | N60: 17.66975 | O60: 17.33025 | P60: 17.66975 | Q60: 16.8351 | R60: 17.1649 | S60: 16.8351 | T60: 17.1649 | U60: 85.66095 | V60: 87.33905 | W60: 34.16535 | X60: 34.83465 | Y60: 110.41845 | Z60: 112.58155 | AA60: 39.11685 | AB60: 39.88315 | AC60: 89.127 | AD60: 90.873 | AE60: 88.63185 | AF60: 90.36815 | AG60: 85.1658 | AH60: 86.8342 | AI60: 70.80645 | AJ60: 72.19355 | AK60: 65.3598 | AL60: 66.6402 | AM60: 57.93255 | AN60: 59.06745 | AO60: 46.5441 | AP60: 47.4559 | AQ60: 38.12655 | AR60: 38.87345 | AS60: 30.20415 | AT60: 30.79585 | AU60: 23.27205 | AV60: 23.72795 | AW60: 17.8254 | AX60: 18.1746 | AY60: 12.8739 | AZ60: 13.1261 | BA60: 11.8836 | BB60: 12.1164 | BC60: 62 | BD60: 50 | BE60: 11 | BF60: 1 | BG60: 35 | BH60: 3 | BI60: 184 | BJ60: 573 | BL60: 35 | BM60: 138 | BN60: 415 | BO60: 465 | BP60: 223 | BQ60: 438 | BR60: 735 | BS60: 194 | BU60: 173 | BV60: 371 | BW60: 1094
B61: 04 | C61: 54 | D61: 5675 | E61: P.S. PRIMAVERA | F61: 2205 | H61: 1091.80575 | I61: 1113.19425 | K61: 18.8157 | L61: 19.1843 | M61: 18.8157 | N61: 19.1843 | O61: 18.8157 | P61: 19.1843 | Q61: 18.8157 | R61: 19.1843 | S61: 19.31085 | T61: 19.68915 | U61: 94.57365 | V61: 96.42635 | W61: 37.13625 | X61: 37.86375 | Y61: 121.31175 | Z61: 123.68825 | AA61: 42.08775 | AB61: 42.91225 | AC61: 98.53485 | AD61: 100.46515 | AE61: 97.54455 | AF61: 99.45545 | AG61: 93.58335 | AH61: 95.41665 | AI61: 78.2337 | AJ61: 79.7663 | AK61: 71.3016 | AL61: 72.6984 | AM61: 63.87435 | AN61: 65.12565 | AO61: 51.4956 | AP61: 52.5044 | AQ61: 42.08775 | AR61: 42.91225 | AS61: 32.6799 | AT61: 33.3201 | AU61: 25.7478 | AV61: 26.2522 | AW61: 19.806 | AX61: 20.194 | AY61: 14.35935 | AZ61: 14.64065 | BA61: 12.8739 | BB61: 13.1261 | BC61: 67 | BD61: 55 | BE61: 11 | BF61: 1 | BG61: 39 | BH61: 3 | BI61: 202 | BJ61: 631 | BL61: 38 | BM61: 153 | BN61: 457 | BO61: 511 | BP61: 245 | BQ61: 481 | BR61: 809 | BS61: 213 | BU61: 191 | BV61: 405 | BW61: 1205
B62: 04 | C62: 55 | D62: 5676 | E62: P.S. JOSE C. MARIATEGUI | F62: 4810 | H62: 2381.6715 | I62: 2428.3285 | K62: 41.5926 | L62: 42.4074 | M62: 41.09745 | N62: 41.90255 | O62: 41.5926 | P62: 42.4074 | Q62: 41.09745 | R62: 41.90255 | S62: 41.5926 | T62: 42.4074 | U62: 205.48725 | V62: 209.51275 | W62: 81.69975 | X62: 83.30025 | Y62: 264.90525 | Z62: 270.09475 | AA62: 92.0979 | AB62: 93.9021 | AC62: 214.39995 | AD62: 218.60005 | AE62: 212.41935 | AF62: 216.58065 | AG62: 203.50665 | AH62: 207.49335 | AI62: 170.3316 | AJ62: 173.6684 | AK62: 155.4771 | AL62: 158.5229 | AM62: 139.6323 | AN62: 142.3677 | AO62: 112.39905 | AP62: 114.60095 | AQ62: 91.60275 | AR62: 93.39725 | AS62: 71.79675 | AT62: 73.20325 | AU62: 55.95195 | AV62: 57.04805 | AW62: 43.5732 | AX62: 44.4268 | AY62: 31.19445 | AZ62: 31.80555 | BA62: 28.22355 | BB62: 28.77645 | BC62: 148 | BD62: 120 | BE62: 25 | BF62: 3 | BG62: 84 | BH62: 6 | BI62: 441 | BJ62: 1376 | BL62: 84 | BM62: 334 | BN62: 998 | BO62: 1115 | BP62: 535 | BQ62: 1048 | BR62: 1763 | BS62: 466 | BU62: 415 | BV62: 886 | BW62: 2625
B63: 04 | C63: 56 | D63: 5677 | E63: P.S. MEDIO MUNDO | F63: 4210 | H63: 2084.5815 | I63: 2125.4185 | K63: 36.14595 | L63: 36.85405 | M63: 36.14595 | N63: 36.85405 | O63: 36.14595 | P63: 36.85405 | Q63: 36.14595 | R63: 36.85405 | S63: 36.6411 | T63: 37.3589 | U63: 179.73945 | V63: 183.26055 | W63: 71.3016 | X63: 72.6984 | Y63: 232.22535 | Z63: 236.77465 | AA63: 80.70945 | AB63: 82.29055 | AC63: 187.66185 | AD63: 191.33815 | AE63: 185.68125 | AF63: 189.31875 | AG63: 177.75885 | AH63: 181.24115 | AI63: 149.5353 | AJ63: 152.4647 | AK63: 136.16625 | AL63: 138.83375 | AM63: 122.30205 | AN63: 124.69795 | AO63: 98.0397 | AP63: 99.9603 | AQ63: 80.2143 | AR63: 81.7857 | AS63: 62.88405 | AT63: 64.11595 | AU63: 49.01985 | AV63: 49.98015 | AW63: 38.12655 | AX63: 38.87345 | AY63: 27.23325 | AZ63: 27.76675 | BA63: 24.7575 | BB63: 25.2425 | BC63: 129 | BD63: 105 | BE63: 22 | BF63: 2 | BG63: 74 | BH63: 6 | BI63: 386 | BJ63: 1204 | BL63: 73 | BM63: 293 | BN63: 873 | BO63: 976 | BP63: 469 | BQ63: 917 | BR63: 1543 | BS63: 408 | BU63: 363 | BV63: 776 | BW63: 2297
B64: 04 | C64: 57 | D64: 5678 | E64: P.S. TIROLER | F64: 802 | H64: 397.1103 | I64: 404.8897 | K64: 6.9321 | L64: 7.0679 | M64: 6.9321 | N64: 7.0679 | O64: 6.9321 | P64: 7.0679 | Q64: 6.9321 | R64: 7.0679 | S64: 6.9321 | T64: 7.0679 | U64: 34.16535 | V64: 34.83465 | W64: 13.36905 | X64: 13.63095 | Y64: 44.5635 | Z64: 45.4365 | AA64: 15.34965 | AB64: 15.65035 | AC64: 35.6508 | AD64: 36.3492 | AE64: 35.15565 | AF64: 35.84435 | AG64: 34.16535 | AH64: 34.83465 | AI64: 28.22355 | AJ64: 28.77645 | AK64: 25.7478 | AL64: 26.2522 | AM64: 23.27205 | AN64: 23.72795 | AO64: 18.8157 | AP64: 19.1843 | AQ64: 15.34965 | AR64: 15.65035 | AS64: 11.8836 | AT64: 12.1164 | AU64: 9.40785 | AV64: 9.59215 | AW64: 7.42725 | AX64: 7.57275 | AY64: 4.9515 | AZ64: 5.0485 | BA64: 4.9515 | BB64: 5.0485 | BC64: 25 | BD64: 20 | BE64: 4 | BF64: 1 | BG64: 14 | BH64: 1 | BI64: 74 | BJ64: 229 | BL64: 14 | BM64: 56 | BN64: 166 | BO64: 186 | BP64: 90 | BQ64: 174 | BR64: 294 | BS64: 78 | BU64: 69 | BV64: 148 | BW64: 437
A65: 150900 | C65: 58 | D65: 150900 | E65: IHUARI - ACOTAMA | F65: 1370 | H65: 678.3555 | I65: 691.6445 | K65: 11.38845 | L65: 11.61155 | M65: 11.8836 | N65: 12.1164 | O65: 11.8836 | P65: 12.1164 | Q65: 10.8933 | R65: 11.1067 | S65: 12.8739 | T65: 13.1261 | U65: 58.4277 | V65: 59.5723 | W65: 23.27205 | X65: 23.72795 | Y65: 75.75795 | Z65: 77.24205 | AA65: 26.24295 | AB65: 26.75705 | AC65: 61.3986 | AD65: 62.6014 | AE65: 60.4083 | AF65: 61.5917 | AG65: 57.93255 | AH65: 59.06745 | AI65: 48.5247 | AJ65: 49.4753 | AK65: 44.06835 | AL65: 44.93165 | AM65: 39.612 | AN65: 40.388 | AO65: 32.18475 | AP65: 32.81525 | AQ65: 26.24295 | AR65: 26.75705 | AS65: 20.30115 | AT65: 20.69885 | AU65: 15.8448 | AV65: 16.1552 | AW65: 12.37875 | AX65: 12.62125 | AY65: 8.9127 | AZ65: 9.0873 | BA65: 7.9224 | BB65: 8.0776 | BC65: 41 | BD65: 33 | BE65: 7 | BF65: 1 | BG65: 23 | BH65: 2 | BI65: 125 | BJ65: 392 | BL65: 23 | BM65: 96 | BN65: 284 | BO65: 318 | BP65: 153 | BQ65: 299 | BR65: 502 | BS65: 132 | BU65: 118 | BV65: 253 | BW65: 748
A66: 150901 | C66: 59 | D66: 150901 | E66: PROVINCIA OYON | F66: 24800 | H66: 12279.72 | I66: 12520.28 | K66: 213.9048 | L66: 218.0952 | M66: 212.9145 | N66: 217.0855 | O66: 212.9145 | P66: 217.0855 | Q66: 212.9145 | R66: 217.0855 | S66: 212.9145 | T66: 217.0855 | U66: 1059.621 | V66: 1080.379 | W66: 420.38235 | X66: 428.61765 | Y66: 1367.10915 | Z66: 1393.89085 | AA66: 475.344 | AB66: 484.656 | AC66: 1105.66995 | AD66: 1127.33005 | AE66: 1094.77665 | AF66: 1116.22335 | AG66: 1050.7083 | AH66: 1071.2917 | AI66: 878.3961 | AJ66: 895.6039 | AK66: 802.143 | AL66: 817.857 | AM66: 719.45295 | AN66: 733.54705 | AO66: 578.3352 | AP66: 589.6648 | AQ66: 473.3634 | AR66: 482.6366 | AS66: 369.87705 | AT66: 377.12295 | AU66: 288.1773 | AV66: 293.8227 | AW66: 224.30295 | AX66: 228.69705 | AY66: 159.93345 | AZ66: 163.06655 | BA66: 146.5644 | BB66: 149.4356 | BC66: 759 | BD66: 618 | BE66: 129 | BF66: 12 | BG66: 436 | BH66: 33 | BI66: 2275 | BJ66: 7092 | BL66: 432 | BM66: 1720 | BN66: 5141 | BO66: 5750 | BP66: 2761 | BQ66: 5404 | BR66: 9093 | BS66: 2401 | BU66: 2140 | BV66: 4570 | BW66: 13537
B67: 05 | C67: 60 | D67: 5659 | E67: DISTRITO OYON | F67: 15394 | H67: 7622.3391 | I67: 7771.6609 | K67: 132.7002 | L67: 135.2998 | M67: 132.20505 | N67: 134.79495 | O67: 132.20505 | P67: 134.79495 | Q67: 131.7099 | R67: 134.2901 | S67: 132.7002 | T67: 135.2998 | U67: 657.5592 | V67: 670.4408 | W67: 260.94405 | X67: 266.05595 | Y67: 847.6968 | Z67: 864.3032 | AA67: 295.60455 | AB67: 301.39545 | AC67: 686.77305 | AD67: 700.22695 | AE67: 679.3458 | AF67: 692.6542 | AG67: 652.6077 | AH67: 665.3923 | AI67: 545.6553 | AJ67: 556.3447 | AK67: 497.62575 | AL67: 507.37425 | AM67: 446.6253 | AN67: 455.3747 | AO67: 358.98375 | AP67: 366.01625 | AQ67: 293.62395 | AR67: 299.37605 | AS67: 229.7496 | AT67: 234.2504 | AU67: 178.74915 | AV67: 182.25085 | AW67: 138.642 | AX67: 141.358 | AY67: 99.52515 | AZ67: 101.47485 | BA67: 91.1076 | BB67: 92.8924 | BC67: 471 | BD67: 383 | BE67: 81 | BF67: 7 | BG67: 271 | BH67: 21 | BI67: 1413 | BJ67: 4402 | BL67: 268 | BM67: 1068 | BN67: 3191 | BO67: 3567 | BP67: 1712 | BQ67: 3356 | BR67: 5645 | BS67: 1490 | BU67: 1328 | BV67: 2836 | BW67: 8404
B68: 05 | C68: 61 | D68: 5660 | E68: C.S. OYON | F68: 12777 | H68: 6326.53155 | I68: 6450.46845 | K68: 110.41845 | L68: 112.58155 | M68: 109.9233 | N68: 112.0767 | O68: 109.9233 | P68: 112.0767 | Q68: 109.42815 | R68: 111.57185 | S68: 110.41845 | T68: 112.58155 | U68: 545.6553 | V68: 556.3447 | W68: 216.8757 | X68: 221.1243 | Y68: 703.60815 | Z68: 717.39185 | AA68: 245.09925 | AB68: 249.90075 | AC68: 569.91765 | AD68: 581.08235 | AE68: 562.98555 | AF68: 574.01445 | AG68: 541.6941 | AH68: 552.3059 | AI68: 453.06225 | AJ68: 461.93775 | AK68: 413.45025 | AL68: 421.54975 | AM68: 370.86735 | AN68: 378.13265 | AO68: 298.0803 | AP68: 303.9197 | AQ68: 243.6138 | AR68: 248.3862 | AS68: 190.63275 | AT68: 194.36725 | AU68: 148.04985 | AV68: 150.95015 | AW68: 114.8748 | AX68: 117.1252 | AY68: 82.69005 | AZ68: 84.30995 | BA68: 75.2628 | BB68: 76.7372 | BC68: 392 | BD68: 318 | BE68: 68 | BF68: 6 | BG68: 224 | BH68: 17 | BI68: 1173 | BJ68: 3654 | BL68: 223 | BM68: 888 | BN68: 2651 | BO68: 2961 | BP68: 1421 | BQ68: 2783 | BR68: 4687 | BS68: 1235 | BU68: 1102 | BV68: 2354 | BW68: 6975
B69: 05 | C69: 62 | D69: 5661 | E69: P.S. MALLAY | F69: 770 | H69: 381.2655 | I69: 388.7345 | K69: 6.43695 | L69: 6.56305 | M69: 6.43695 | N69: 6.56305 | O69: 6.43695 | P69: 6.56305 | Q69: 6.43695 | R69: 6.56305 | S69: 6.43695 | T69: 6.56305 | U69: 33.17505 | V69: 33.82495 | W69: 12.8739 | X69: 13.1261 | Y69: 42.5829 | Z69: 43.4171 | AA69: 14.8545 | AB69: 15.1455 | AC69: 34.16535 | AD69: 34.83465 | AE69: 34.6605 | AF69: 35.3395 | AG69: 32.6799 | AH69: 33.3201 | AI69: 27.23325 | AJ69: 27.76675 | AK69: 24.7575 | AL69: 25.2425 | AM69: 22.28175 | AN69: 22.71825 | AO69: 17.8254 | AP69: 18.1746 | AQ69: 14.8545 | AR69: 15.1455 | AS69: 11.38845 | AT69: 11.61155 | AU69: 8.9127 | AV69: 9.0873 | AW69: 7.42725 | AX69: 7.57275 | AY69: 4.9515 | AZ69: 5.0485 | BA69: 4.45635 | BB69: 4.54365 | BC69: 23 | BD69: 19 | BE69: 4 | BF69: 0 | BG69: 14 | BH69: 1 | BI69: 71 | BJ69: 220 | BL69: 13 | BM69: 52 | BN69: 158 | BO69: 179 | BP69: 86 | BQ69: 169 | BR69: 282 | BS69: 75 | BU69: 67 | BV69: 142 | BW69: 421
B70: 05 | C70: 63 | D70: 5662 | E70: P.S. NAVA | F70: 154 | H70: 76.2531 | I70: 77.7469 | K70: 1.48545 | L70: 1.51455 | M70: 1.48545 | N70: 1.51455 | O70: 1.48545 | P70: 1.51455 | Q70: 1.48545 | R70: 1.51455 | S70: 1.48545 | T70: 1.51455 | U70: 6.43695 | V70: 6.56305 | W70: 2.47575 | X70: 2.52425 | Y70: 8.41755 | Z70: 8.58245 | AA70: 2.9709 | AB70: 3.0291 | AC70: 6.9321 | AD70: 7.0679 | AE70: 6.43695 | AF70: 6.56305 | AG70: 6.43695 | AH70: 6.56305 | AI70: 4.9515 | AJ70: 5.0485 | AK70: 4.9515 | AL70: 5.0485 | AM70: 4.45635 | AN70: 4.54365 | AO70: 3.46605 | AP70: 3.53395 | AQ70: 2.9709 | AR70: 3.0291 | AS70: 2.47575 | AT70: 2.52425 | AU70: 1.9806 | AV70: 2.0194 | AW70: 1.48545 | AX70: 1.51455 | AY70: 0.9903 | AZ70: 1.0097 | BA70: 0.9903 | BB70: 1.0097 | BC70: 5 | BD70: 4 | BE70: 1 | BF70: 0 | BG70: 3 | BH70: 0 | BI70: 14 | BJ70: 44 | BL70: 3 | BM70: 12 | BN70: 33 | BO70: 35 | BP70: 17 | BQ70: 33 | BR70: 55 | BS70: 16 | BU70: 13 | BV70: 28 | BW70: 82
B71: 05 | C71: 64 | D71: 5648 | E71: P.S. TINTA | F71: 462 | H71: 228.7593 | I71: 233.2407 | K71: 3.9612 | L71: 4.0388 | M71: 3.9612 | N71: 4.0388 | O71: 3.9612 | P71: 4.0388 | Q71: 3.9612 | R71: 4.0388 | S71: 3.9612 | T71: 4.0388 | U71: 19.806 | V71: 20.194 | W71: 7.9224 | X71: 8.0776 | Y71: 25.25265 | Z71: 25.74735 | AA71: 8.9127 | AB71: 9.0873 | AC71: 20.7963 | AD71: 21.2037 | AE71: 20.30115 | AF71: 20.69885 | AG71: 19.806 | AH71: 20.194 | AI71: 16.33995 | AJ71: 16.66005 | AK71: 14.8545 | AL71: 15.1455 | AM71: 12.8739 | AN71: 13.1261 | AO71: 10.8933 | AP71: 11.1067 | AQ71: 8.9127 | AR71: 9.0873 | AS71: 6.9321 | AT71: 7.0679 | AU71: 5.44665 | AV71: 5.55335 | AW71: 3.9612 | AX71: 4.0388 | AY71: 2.9709 | AZ71: 3.0291 | BA71: 2.9709 | BB71: 3.0291 | BC71: 13 | BD71: 11 | BE71: 2 | BF71: 0 | BG71: 8 | BH71: 1 | BI71: 42 | BJ71: 132 | BL71: 8 | BM71: 32 | BN71: 96 | BO71: 107 | BP71: 51 | BQ71: 101 | BR71: 169 | BS71: 45 | BU71: 40 | BV71: 85 | BW71: 252
A72: 150902 | C72: 65 | D72: 150902 | E72: P.S. RAPAZ | F72: 1231 | H72: 609.52965 | I72: 621.47035 | K72: 10.39815 | L72: 10.60185 | M72: 10.39815 | N72: 10.60185 | O72: 10.39815 | P72: 10.60185 | Q72: 10.39815 | R72: 10.60185 | S72: 10.39815 | T72: 10.60185 | U72: 52.4859 | V72: 53.5141 | W72: 20.7963 | X72: 21.2037 | Y72: 67.83555 | Z72: 69.16445 | AA72: 23.7672 | AB72: 24.2328 | AC72: 54.96165 | AD72: 56.03835 | AE72: 54.96165 | AF72: 56.03835 | AG72: 51.99075 | AH72: 53.00925 | AI72: 44.06835 | AJ72: 44.93165 | AK72: 39.612 | AL72: 40.388 | AM72: 36.14595 | AN72: 36.85405 | AO72: 28.7187 | AP72: 29.2813 | AQ72: 23.27205 | AR72: 23.72795 | AS72: 18.32055 | AT72: 18.67945 | AU72: 14.35935 | AV72: 14.64065 | AW72: 10.8933 | AX72: 11.1067 | AY72: 7.9224 | AZ72: 8.0776 | BA72: 7.42725 | BB72: 7.57275 | BC72: 38 | BD72: 31 | BE72: 6 | BF72: 1 | BG72: 22 | BH72: 2 | BI72: 113 | BJ72: 352 | BL72: 21 | BM72: 84 | BN72: 253 | BO72: 285 | BP72: 137 | BQ72: 270 | BR72: 452 | BS72: 119 | BU72: 106 | BV72: 227 | BW72: 674
B73: 05 | C73: 66 | D73: 5654 | E73: DISTRITO ANDAJES | F73: 1234 | H73: 611.0151 | I73: 622.9849 | K73: 11.38845 | L73: 11.61155 | M73: 10.39815 | N73: 10.60185 | O73: 9.903 | P73: 10.097 | Q73: 11.8836 | R73: 12.1164 | S73: 9.40785 | T73: 9.59215 | U73: 52.4859 | V73: 53.5141 | W73: 20.7963 | X73: 21.2037 | Y73: 67.3404 | Z73: 68.6596 | AA73: 23.7672 | AB73: 24.2328 | AC73: 54.96165 | AD73: 56.03835 | AE73: 54.4665 | AF73: 55.5335 | AG73: 52.4859 | AH73: 53.5141 | AI73: 43.5732 | AJ73: 44.4268 | AK73: 40.10715 | AL73: 40.89285 | AM73: 35.6508 | AN73: 36.3492 | AO73: 28.7187 | AP73: 29.2813 | AQ73: 23.7672 | AR73: 24.2328 | AS73: 18.32055 | AT73: 18.67945 | AU73: 14.35935 | AV73: 14.64065 | AW73: 11.38845 | AX73: 11.61155 | AY73: 7.9224 | AZ73: 8.0776 | BA73: 7.9224 | BB73: 8.0776 | BC73: 40 | BD73: 33 | BE73: 6 | BF73: 1 | BG73: 23 | BH73: 2 | BI73: 113 | BJ73: 353 | BL73: 23 | BM73: 84 | BN73: 255 | BO73: 284 | BP73: 136 | BQ73: 269 | BR73: 453 | BS73: 121 | BU73: 106 | BV73: 226 | BW73: 674
A74: 150903 | C74: 67 | D74: 150903 | E74: P.S. ANDAJES | F74: 1234 | H74: 611.0151 | I74: 622.9849 | K74: 11.38845 | L74: 11.61155 | M74: 10.39815 | N74: 10.60185 | O74: 9.903 | P74: 10.097 | Q74: 11.8836 | R74: 12.1164 | S74: 9.40785 | T74: 9.59215 | U74: 52.4859 | V74: 53.5141 | W74: 20.7963 | X74: 21.2037 | Y74: 67.3404 | Z74: 68.6596 | AA74: 23.7672 | AB74: 24.2328 | AC74: 54.96165 | AD74: 56.03835 | AE74: 54.4665 | AF74: 55.5335 | AG74: 52.4859 | AH74: 53.5141 | AI74: 43.5732 | AJ74: 44.4268 | AK74: 40.10715 | AL74: 40.89285 | AM74: 35.6508 | AN74: 36.3492 | AO74: 28.7187 | AP74: 29.2813 | AQ74: 23.7672 | AR74: 24.2328 | AS74: 18.32055 | AT74: 18.67945 | AU74: 14.35935 | AV74: 14.64065 | AW74: 11.38845 | AX74: 11.61155 | AY74: 7.9224 | AZ74: 8.0776 | BA74: 7.9224 | BB74: 8.0776 | BC74: 40 | BD74: 33 | BE74: 6 | BF74: 1 | BG74: 23 | BH74: 2 | BI74: 113 | BJ74: 353 | BL74: 23 | BM74: 84 | BN74: 255 | BO74: 284 | BP74: 136 | BQ74: 269 | BR74: 453 | BS74: 121 | BU74: 106 | BV74: 226 | BW74: 674
B75: 05 | C75: 68 | D75: 5655 | E75: DISTRITO CAUJUL | F75: 1101 | H75: 545.16015 | I75: 555.83985 | K75: 7.9224 | L75: 8.0776 | M75: 9.40785 | N75: 9.59215 | O75: 9.903 | P75: 10.097 | Q75: 8.41755 | R75: 8.58245 | S75: 10.39815 | T75: 10.60185 | U75: 47.5344 | V75: 48.4656 | W75: 19.31085 | X75: 19.68915 | Y75: 61.3986 | Z75: 62.6014 | AA75: 20.7963 | AB75: 21.2037 | AC75: 49.01985 | AD75: 49.98015 | AE75: 48.5247 | AF75: 49.4753 | AG75: 46.5441 | AH75: 47.4559 | AI75: 39.11685 | AJ75: 39.88315 | AK75: 35.6508 | AL75: 36.3492 | AM75: 32.18475 | AN75: 32.81525 | AO75: 25.7478 | AP75: 26.2522 | AQ75: 20.7963 | AR75: 21.2037 | AS75: 16.33995 | AT75: 16.66005 | AU75: 12.8739 | AV75: 13.1261 | AW75: 9.903 | AX75: 10.097 | AY75: 6.9321 | AZ75: 7.0679 | BA75: 6.43695 | BB75: 6.56305 | BC75: 28 | BD75: 23 | BE75: 5 | BF75: 0 | BG75: 16 | BH75: 1 | BI75: 101 | BJ75: 315 | BL75: 16 | BM75: 77 | BN75: 228 | BO75: 259 | BP75: 124 | BQ75: 239 | BR75: 404 | BS75: 106 | BU75: 96 | BV75: 205 | BW75: 601
A76: 150904 | C76: 69 | D76: 150904 | E76: P.S. CAUJUL | F76: 1101 | H76: 545.16015 | I76: 555.83985 | K76: 7.9224 | L76: 8.0776 | M76: 9.40785 | N76: 9.59215 | O76: 9.903 | P76: 10.097 | Q76: 8.41755 | R76: 8.58245 | S76: 10.39815 | T76: 10.60185 | U76: 47.5344 | V76: 48.4656 | W76: 19.31085 | X76: 19.68915 | Y76: 61.3986 | Z76: 62.6014 | AA76: 20.7963 | AB76: 21.2037 | AC76: 49.01985 | AD76: 49.98015 | AE76: 48.5247 | AF76: 49.4753 | AG76: 46.5441 | AH76: 47.4559 | AI76: 39.11685 | AJ76: 39.88315 | AK76: 35.6508 | AL76: 36.3492 | AM76: 32.18475 | AN76: 32.81525 | AO76: 25.7478 | AP76: 26.2522 | AQ76: 20.7963 | AR76: 21.2037 | AS76: 16.33995 | AT76: 16.66005 | AU76: 12.8739 | AV76: 13.1261 | AW76: 9.903 | AX76: 10.097 | AY76: 6.9321 | AZ76: 7.0679 | BA76: 6.43695 | BB76: 6.56305 | BC76: 28 | BD76: 23 | BE76: 5 | BF76: 0 | BG76: 16 | BH76: 1 | BI76: 101 | BJ76: 315 | BL76: 16 | BM76: 77 | BN76: 228 | BO76: 259 | BP76: 124 | BQ76: 239 | BR76: 404 | BS76: 106 | BU76: 96 | BV76: 205 | BW76: 601
B77: 03 | C77: 70 | D77: 5783 | E77: DISTRITO COCHAMARCA | F77: 1791 | H77: 886.81365 | I77: 904.18635 | K77: 15.34965 | L77: 15.65035 | M77: 15.8448 | N77: 16.1552 | O77: 15.34965 | P77: 15.65035 | Q77: 14.35935 | R77: 14.64065 | S77: 16.33995 | T77: 16.66005 | U77: 76.74825 | V77: 78.25175 | W77: 30.20415 | X77: 30.79585 | Y77: 99.03 | Z77: 100.97 | AA77: 34.16535 | AB77: 34.83465 | AC77: 79.71915 | AD77: 81.28085 | AE77: 79.224 | AF77: 80.776 | AG77: 75.75795 | AH77: 77.24205 | AI77: 63.3792 | AJ77: 64.6208 | AK77: 57.93255 | AL77: 59.06745 | AM77: 51.99075 | AN77: 53.00925 | AO77: 41.5926 | AP77: 42.4074 | AQ77: 34.16535 | AR77: 34.83465 | AS77: 26.7381 | AT77: 27.2619 | AU77: 20.7963 | AV77: 21.2037 | AW77: 16.33995 | AX77: 16.66005 | AY77: 11.38845 | AZ77: 11.61155 | BA77: 10.39815 | BB77: 10.60185 | BC77: 55 | BD77: 45 | BE77: 9 | BF77: 1 | BG77: 31 | BH77: 2 | BI77: 164 | BJ77: 512 | BL77: 31 | BM77: 125 | BN77: 372 | BO77: 416 | BP77: 200 | BQ77: 390 | BR77: 656 | BS77: 173 | BU77: 155 | BV77: 330 | BW77: 977
B78: 03 | C78: 71 | D78: 5784 | E78: P.S. COCHAMARCA | F78: 645 | H78: 319.37175 | I78: 325.62825 | K78: 5.44665 | L78: 5.55335 | M78: 5.9418 | N78: 6.0582 | O78: 5.44665 | P78: 5.55335 | Q78: 4.9515 | R78: 5.0485 | S78: 5.9418 | T78: 6.0582 | U78: 27.7284 | V78: 28.2716 | W78: 10.8933 | X78: 11.1067 | Y78: 35.6508 | Z78: 36.3492 | AA78: 12.37875 | AB78: 12.62125 | AC78: 28.7187 | AD78: 29.2813 | AE78: 28.7187 | AF78: 29.2813 | AG78: 27.23325 | AH78: 27.76675 | AI78: 22.7769 | AJ78: 23.2231 | AK78: 20.7963 | AL78: 21.2037 | AM78: 18.8157 | AN78: 19.1843 | AO78: 15.34965 | AP78: 15.65035 | AQ78: 12.37875 | AR78: 12.62125 | AS78: 9.903 | AT78: 10.097 | AU78: 7.42725 | AV78: 7.57275 | AW78: 5.44665 | AX78: 5.55335 | AY78: 3.9612 | AZ78: 4.0388 | BA78: 3.46605 | BB78: 3.53395 | BC78: 19 | BD78: 16 | BE78: 3 | BF78: 0 | BG78: 11 | BH78: 1 | BI78: 59 | BJ78: 184 | BL78: 11 | BM78: 45 | BN78: 134 | BO78: 150 | BP78: 72 | BQ78: 141 | BR78: 237 | BS78: 61 | BU78: 56 | BV78: 119 | BW78: 353
B79: 03 | C79: 72 | D79: 5785 | E79: COLCAPAMPA | F79: 842 | H79: 416.9163 | I79: 425.0837 | K79: 7.42725 | L79: 7.57275 | M79: 7.42725 | N79: 7.57275 | O79: 7.42725 | P79: 7.57275 | Q79: 6.9321 | R79: 7.0679 | S79: 7.42725 | T79: 7.57275 | U79: 36.14595 | V79: 36.85405 | W79: 14.35935 | X79: 14.64065 | Y79: 46.5441 | Z79: 47.4559 | AA79: 15.8448 | AB79: 16.1552 | AC79: 37.6314 | AD79: 38.3686 | AE79: 37.13625 | AF79: 37.86375 | AG79: 35.6508 | AH79: 36.3492 | AI79: 29.709 | AJ79: 30.291 | AK79: 27.23325 | AL79: 27.76675 | AM79: 24.26235 | AN79: 24.73765 | AO79: 19.31085 | AP79: 19.68915 | AQ79: 15.8448 | AR79: 16.1552 | AS79: 12.37875 | AT79: 12.62125 | AU79: 9.903 | AV79: 10.097 | AW79: 7.9224 | AX79: 8.0776 | AY79: 5.44665 | AZ79: 5.55335 | BA79: 4.9515 | BB79: 5.0485 | BC79: 26 | BD79: 21 | BE79: 4 | BF79: 1 | BG79: 15 | BH79: 1 | BI79: 77 | BJ79: 241 | BL79: 15 | BM79: 59 | BN79: 176 | BO79: 196 | BP79: 94 | BQ79: 183 | BR79: 307 | BS79: 82 | BU79: 73 | BV79: 155 | BW79: 458
A80: 150905 | C80: 73 | D80: 150905 | E80: YARUCAYA | F80: 304 | H80: 150.5256 | I80: 153.4744 | K80: 2.47575 | L80: 2.52425 | M80: 2.47575 | N80: 2.52425 | O80: 2.47575 | P80: 2.52425 | Q80: 2.47575 | R80: 2.52425 | S80: 2.9709 | T80: 3.0291 | U80: 12.8739 | V80: 13.1261 | W80: 4.9515 | X80: 5.0485 | Y80: 16.8351 | Z80: 17.1649 | AA80: 5.9418 | AB80: 6.0582 | AC80: 13.36905 | AD80: 13.63095 | AE80: 13.36905 | AF80: 13.63095 | AG80: 12.8739 | AH80: 13.1261 | AI80: 10.8933 | AJ80: 11.1067 | AK80: 9.903 | AL80: 10.097 | AM80: 8.9127 | AN80: 9.0873 | AO80: 6.9321 | AP80: 7.0679 | AQ80: 5.9418 | AR80: 6.0582 | AS80: 4.45635 | AT80: 4.54365 | AU80: 3.46605 | AV80: 3.53395 | AW80: 2.9709 | AX80: 3.0291 | AY80: 1.9806 | AZ80: 2.0194 | BA80: 1.9806 | BB80: 2.0194 | BC80: 10 | BD80: 8 | BE80: 2 | BF80: 0 | BG80: 5 | BH80: 0 | BI80: 28 | BJ80: 87 | BL80: 5 | BM80: 21 | BN80: 62 | BO80: 70 | BP80: 34 | BQ80: 66 | BR80: 112 | BS80: 30 | BU80: 26 | BV80: 56 | BW80: 166
B81: 05 | C81: 74 | D81: 5656 | E81: DISTRITO NAVAN | F81: 1291 | H81: 639.23865 | I81: 651.76135 | K81: 11.8836 | L81: 12.1164 | M81: 10.8933 | N81: 11.1067 | O81: 11.38845 | P81: 11.61155 | Q81: 11.38845 | R81: 11.61155 | S81: 10.8933 | T81: 11.1067 | U81: 54.96165 | V81: 56.03835 | W81: 21.7866 | X81: 22.2134 | Y81: 71.3016 | Z81: 72.6984 | AA81: 24.7575 | AB81: 25.2425 | AC81: 57.4374 | AD81: 58.5626 | AE81: 56.94225 | AF81: 58.05775 | AG81: 54.4665 | AH81: 55.5335 | AI81: 45.5538 | AJ81: 46.4462 | AK81: 41.5926 | AL81: 42.4074 | AM81: 37.6314 | AN81: 38.3686 | AO81: 30.20415 | AP81: 30.79585 | AQ81: 24.7575 | AR81: 25.2425 | AS81: 19.31085 | AT81: 19.68915 | AU81: 14.8545 | AV81: 15.1455 | AW81: 11.8836 | AX81: 12.1164 | AY81: 8.41755 | AZ81: 8.58245 | BA81: 6.9321 | BB81: 7.0679 | BC81: 42 | BD81: 33 | BE81: 8 | BF81: 1 | BG81: 24 | BH81: 2 | BI81: 118 | BJ81: 369 | BL81: 24 | BM81: 90 | BN81: 269 | BO81: 299 | BP81: 144 | BQ81: 281 | BR81: 473 | BS81: 124 | BU81: 111 | BV81: 238 | BW81: 704
A82: 150906 | C82: 75 | D82: 150906 | E82: P.S. NAVAN | F82: 1291 | H82: 639.23865 | I82: 651.76135 | K82: 11.8836 | L82: 12.1164 | M82: 10.8933 | N82: 11.1067 | O82: 11.38845 | P82: 11.61155 | Q82: 11.38845 | R82: 11.61155 | S82: 10.8933 | T82: 11.1067 | U82: 54.96165 | V82: 56.03835 | W82: 21.7866 | X82: 22.2134 | Y82: 71.3016 | Z82: 72.6984 | AA82: 24.7575 | AB82: 25.2425 | AC82: 57.4374 | AD82: 58.5626 | AE82: 56.94225 | AF82: 58.05775 | AG82: 54.4665 | AH82: 55.5335 | AI82: 45.5538 | AJ82: 46.4462 | AK82: 41.5926 | AL82: 42.4074 | AM82: 37.6314 | AN82: 38.3686 | AO82: 30.20415 | AP82: 30.79585 | AQ82: 24.7575 | AR82: 25.2425 | AS82: 19.31085 | AT82: 19.68915 | AU82: 14.8545 | AV82: 15.1455 | AW82: 11.8836 | AX82: 12.1164 | AY82: 8.41755 | AZ82: 8.58245 | BA82: 6.9321 | BB82: 7.0679 | BC82: 42 | BD82: 33 | BE82: 8 | BF82: 1 | BG82: 24 | BH82: 2 | BI82: 118 | BJ82: 369 | BL82: 24 | BM82: 90 | BN82: 269 | BO82: 299 | BP82: 144 | BQ82: 281 | BR82: 473 | BS82: 124 | BU82: 111 | BV82: 238 | BW82: 704
B83: 05 | C83: 76 | D83: 5657 | E83: DISTRITO PACHANGARA | F83: 3989 | H83: 1975.15335 | I83: 2013.84665 | K83: 34.6605 | L83: 35.3395 | M83: 34.16535 | N83: 34.83465 | O83: 34.16535 | P83: 34.83465 | Q83: 35.15565 | R83: 35.84435 | S83: 33.17505 | T83: 33.82495 | U83: 170.3316 | V83: 173.6684 | W83: 67.3404 | X83: 68.6596 | Y83: 220.34175 | Z83: 224.65825 | AA83: 76.2531 | AB83: 77.7469 | AC83: 177.75885 | AD83: 181.24115 | AE83: 176.2734 | AF83: 179.7266 | AG83: 168.84615 | AH83: 172.15385 | AI83: 141.11775 | AJ83: 143.88225 | AK83: 129.23415 | AL83: 131.76585 | AM83: 115.36995 | AN83: 117.63005 | AO83: 93.0882 | AP83: 94.9118 | AQ83: 76.2531 | AR83: 77.7469 | AS83: 59.418 | AT83: 60.582 | AU83: 46.5441 | AV83: 47.4559 | AW83: 36.14595 | AX83: 36.85405 | AY83: 25.7478 | AZ83: 26.2522 | BA83: 23.7672 | BB83: 24.2328 | BC83: 123 | BD83: 101 | BE83: 20 | BF83: 2 | BG83: 71 | BH83: 5 | BI83: 366 | BJ83: 1141 | BL83: 70 | BM83: 276 | BN83: 826 | BO83: 925 | BP83: 445 | BQ83: 869 | BR83: 1462 | BS83: 387 | BU83: 344 | BV83: 735 | BW83: 2177
B84: 05 | C84: 77 | D84: 5658 | E84: C.S. CHURIN | F84: 3151 | H84: 1560.21765 | I84: 1590.78235 | K84: 27.23325 | L84: 27.76675 | M84: 26.7381 | N84: 27.2619 | O84: 27.23325 | P84: 27.76675 | Q84: 27.7284 | R84: 28.2716 | S84: 26.24295 | T84: 26.75705 | U84: 134.6808 | V84: 137.3192 | W84: 52.98105 | X84: 54.01895 | Y84: 173.79765 | Z84: 177.20235 | AA84: 60.4083 | AB84: 61.5917 | AC84: 140.6226 | AD84: 143.3774 | AE84: 139.13715 | AF84: 141.86285 | AG84: 133.19535 | AH84: 135.80465 | AI84: 111.40875 | AJ84: 113.59125 | AK84: 102.0009 | AL84: 103.9991 | AM84: 91.1076 | AN84: 92.8924 | AO84: 73.2822 | AP84: 74.7178 | AQ84: 60.4083 | AR84: 61.5917 | AS84: 47.03925 | AT84: 47.96075 | AU84: 37.13625 | AV84: 37.86375 | AW84: 28.7187 | AX84: 29.2813 | AY84: 20.30115 | AZ84: 20.69885 | BA84: 18.8157 | BB84: 19.1843 | BC84: 98 | BD84: 80 | BE84: 16 | BF84: 2 | BG84: 56 | BH84: 3 | BI84: 289 | BJ84: 901 | BL84: 55 | BM84: 218 | BN84: 652 | BO84: 730 | BP84: 351 | BQ84: 687 | BR84: 1154 | BS84: 307 | BU84: 272 | BV84: 580 | BW84: 1719
B85: 05 | C85: 78 | D85: 5649 | E85: P.S. PACHANGARA | F85: 399 | H85: 197.56485 | I85: 201.43515 | K85: 3.46605 | L85: 3.53395 | M85: 3.46605 | N85: 3.53395 | O85: 3.46605 | P85: 3.53395 | Q85: 3.46605 | R85: 3.53395 | S85: 3.46605 | T85: 3.53395 | U85: 16.8351 | V85: 17.1649 | W85: 6.9321 | X85: 7.0679 | Y85: 22.28175 | Z85: 22.71825 | AA85: 7.42725 | AB85: 7.57275 | AC85: 17.8254 | AD85: 18.1746 | AE85: 17.8254 | AF85: 18.1746 | AG85: 16.8351 | AH85: 17.1649 | AI85: 14.35935 | AJ85: 14.64065 | AK85: 12.8739 | AL85: 13.1261 | AM85: 11.38845 | AN85: 11.61155 | AO85: 9.40785 | AP85: 9.59215 | AQ85: 7.42725 | AR85: 7.57275 | AS85: 5.9418 | AT85: 6.0582 | AU85: 4.45635 | AV85: 4.54365 | AW85: 3.46605 | AX85: 3.53395 | AY85: 2.47575 | AZ85: 2.52425 | BA85: 2.47575 | BB85: 2.52425 | BC85: 12 | BD85: 10 | BE85: 2 | BF85: 0 | BG85: 7 | BH85: 1 | BI85: 37 | BJ85: 114 | BL85: 7 | BM85: 28 | BN85: 83 | BO85: 93 | BP85: 45 | BQ85: 87 | BR85: 146 | BS85: 38 | BU85: 34 | BV85: 74 | BW85: 218
C86: 79 | D86: 150600 | E86: P.S. HUANCAHUASI | F86: 439 | H86: 217.37085 | I86: 221.62915 | K86: 3.9612 | L86: 4.0388 | M86: 3.9612 | N86: 4.0388 | O86: 3.46605 | P86: 3.53395 | Q86: 3.9612 | R86: 4.0388 | S86: 3.46605 | T86: 3.53395 | U86: 18.8157 | V86: 19.1843 | W86: 7.42725 | X86: 7.57275 | Y86: 24.26235 | Z86: 24.73765 | AA86: 8.41755 | AB86: 8.58245 | AC86: 19.31085 | AD86: 19.68915 | AE86: 19.31085 | AF86: 19.68915 | AG86: 18.8157 | AH86: 19.1843 | AI86: 15.34965 | AJ86: 15.65035 | AK86: 14.35935 | AL86: 14.64065 | AM86: 12.8739 | AN86: 13.1261 | AO86: 10.39815 | AP86: 10.60185 | AQ86: 8.41755 | AR86: 8.58245 | AS86: 6.43695 | AT86: 6.56305 | AU86: 4.9515 | AV86: 5.0485 | AW86: 3.9612 | AX86: 4.0388 | AY86: 2.9709 | AZ86: 3.0291 | BA86: 2.47575 | BB86: 2.52425 | BC86: 13 | BD86: 11 | BE86: 2 | BF86: 0 | BG86: 8 | BH86: 1 | BI86: 40 | BJ86: 126 | BL86: 8 | BM86: 30 | BN86: 91 | BO86: 102 | BP86: 49 | BQ86: 95 | BR86: 162 | BS86: 42 | BU86: 38 | BV86: 81 | BW86: 240
A87: 150606 | B87: 03 | C87: 80
C88: 81 | E88: MICRORED HUAURA | F88: =SUM(H88:I88) -> 37355 | H88: =K88+M88+O88+Q88+S88+U88+W88+Y88+AA88+AC88+AE88+AG88+AI88+AK88+AM88+AO88+AQ88+AS88+AU88+AW88+AY88+BA88 -> 18496.32825 | I88: =L88+N88+P88+R88+T88+V88+X88+Z88+AB88+AD88+AF88+AH88+AJ88+AL88+AN88+AP88+AR88+AT88+AV88+AX88+AZ88+BB88 -> 18858.67175 | K88: =K13+K24 -> 322.8378 | L88: =L13+L24 -> 329.1622 | M88: =M13+M24 -> 320.36205 | N88: 326.63795 | O88: 320.8572 | P88: 327.1428 | Q88: 320.8572 | R88: 327.1428 | S88: 321.35235 | T88: 327.64765 | U88: 1596.3636 | V88: 1627.6364 | W88: 633.29685 | X88: 645.70315 | Y88: 2057.8434 | Z88: 2098.1566 | AA88: 716.48205 | AB88: 730.51795 | AC88: 1665.6846 | AD88: 1698.3154 | AE88: 1649.34465 | AF88: 1681.65535 | AG88: 1582.00425 | AH88: 1612.99575 | AI88: 1323.0408 | AJ88: 1348.9592 | AK88: 1208.66115 | AL88: 1232.33885 | AM88: 1083.88335 | AN88: 1105.11665 | AO88: 870.96885 | AP88: 888.03115 | AQ88: 712.52085 | AR88: 726.47915 | AS88: 557.04375 | AT88: 567.95625 | AU88: 434.24655 | AV88: 442.75345 | AW88: 338.18745 | AX88: 344.81255 | AY88: 240.6429 | AZ88: 245.3571 | BA88: 219.8466 | BB88: =BB13+BB24 -> 224.1534 | BC88: =BC13+BC24 -> 1026 | BD88: =BD13+BD24 -> 833 | BE88: 175 | BF88: 18 | BG88: 589 | BH88: 45 | BI88: 3073 | BJ88: 9580 | BL88: =BL13+BL24 -> 652 | BM88: 2592 | BN88: 7747 | BO88: 8659 | BP88: =BP13+BP24 -> 4156 | BQ88: 8142 | BR88: 13695 | BS88: 3615 | BU88: =BU13+BU24 -> 3224 | BV88: 6882 | BW88: 20390
B89: 1 | C89: 82 | E89: MICRORED HUALMAY | F89: =SUM(H89:I89) -> 78674 | H89: =K89+M89+O89+Q89+S89+U89+W89+Y89+AA89+AC89+AE89+AG89+AI89+AK89+AM89+AO89+AQ89+AS89+AU89+AW89+AY89+BA89 -> 38955.4311 | I89: =L89+N89+P89+R89+T89+V89+X89+Z89+AB89+AD89+AF89+AH89+AJ89+AL89+AN89+AP89+AR89+AT89+AV89+AX89+AZ89+BB89 -> 39718.5689 | K89: =K12+K16+K20+K44 -> 676.87005 | L89: =L12+L16+L20+L44 -> 690.12995 | M89: 675.3846 | N89: 688.6154 | O89: 675.87975 | P89: 689.12025 | Q89: 675.3846 | R89: 688.6154 | S89: 676.3749 | T89: 689.6251 | U89: 3361.57335 | V89: 3427.42665 | W89: 1333.9341 | X89: 1360.0659 | Y89: 4335.03825 | Z89: 4419.96175 | AA89: 1509.2172 | AB89: 1538.7828 | AC89: 3508.6329 | AD89: 3577.3671 | AE89: 3473.47725 | AF89: 3541.52275 | AG89: 3332.3595 | AH89: 3397.6405 | AI89: 2785.7139 | AJ89: 2840.2861 | AK89: 2545.071 | AL89: 2594.929 | AM89: 2282.6415 | AN89: 2327.3585 | AO89: 1834.53075 | AP89: 1870.46925 | AQ89: 1501.2948 | AR89: 1530.7052 | AS89: 1172.5152 | AT89: 1195.4848 | AU89: 915.0372 | AV89: 932.9628 | AW89: 711.0354 | AX89: 724.9646 | AY89: 507.52875 | AZ89: 517.47125 | BA89: 465.93615 | BB89: =BB12+BB16+BB20+BB44 -> 475.06385 | BC89: =BC12+BC16+BC20+BC44 -> 2394 | BD89: 1945 | BE89: 410 | BF89: 39 | BG89: 1375 | BH89: 105 | BI89: 7218 | BJ89: 22498 | BL89: =BL12+BL16+BL20+BL44 -> 1367 | BM89: 5459 | BN89: 16309 | BO89: 18238 | BP89: =BP12+BP16+BP20+BP44 -> 8755 | BQ89: 17149 | BR89: 28843 | BS89: 7618 | BU89: =BU12+BU16+BU20+BU44 -> 6789 | BV89: 14497 | BW89: 42944
B90: 2 | C90: 83 | E90: MICRORED SAYAN | F90: =SUM(H90:I90) -> 29472 | H90: =K90+M90+O90+Q90+S90+U90+W90+Y90+AA90+AC90+AE90+AG90+AI90+AK90+AM90+AO90+AQ90+AS90+AU90+AW90+AY90+BA90 -> 14593.0608 | I90: =L90+N90+P90+R90+T90+V90+X90+Z90+AB90+AD90+AF90+AH90+AJ90+AL90+AN90+AP90+AR90+AT90+AV90+AX90+AZ90+BB90 -> 14878.9392 | K90: =K30+K50+K77+K65 -> 255.00225 | L90: =L30+L50+L77+L65 -> 259.99775 | M90: 253.02165 | N90: 257.97835 | O90: 253.02165 | P90: 257.97835 | Q90: 253.02165 | R90: 257.97835 | S90: 253.5168 | T90: 258.4832 | U90: 1258.6713 | V90: 1283.3287 | W90: 499.60635 | X90: 509.39365 | Y90: 1624.58715 | Z90: 1656.41285 | AA90: 564.96615 | AB90: 576.03385 | AC90: 1314.62325 | AD90: 1340.37675 | AE90: 1301.2542 | AF90: 1326.7458 | AG90: 1248.27315 | AH90: 1272.72685 | AI90: 1043.7762 | AJ90: 1064.2238 | AK90: 953.16375 | AL90: 971.83625 | AM90: 854.6289 | AN90: 871.3711 | AO90: 687.2682 | AP90: 700.7318 | AQ90: 562.4904 | AR90: 573.5096 | AS90: 439.19805 | AT90: 447.80195 | AU90: 342.6438 | AV90: 349.3562 | AW90: 266.88585 | AX90: 272.11415 | AY90: 190.1376 | AZ90: 193.8624 | BA90: 173.3025 | BB90: 176.6975 | BC90: 892 | BD90: 725 | BE90: 151 | BF90: 16 | BG90: 510 | BH90: 38 | BI90: 2664 | BJ90: 8309 | BL90: =BL30+BL50+BL77+BL65 -> 515 | BM90: 2045 | BN90: 6111 | BO90: 6832 | BP90: =BP30+BP50+BP77+BP65 -> 3281 | BQ90: 6424 | BR90: 10804 | BS90: 2852 | BU90: =BU30+BU50+BU77+BU65 -> 2542 | BV90: 5431 | BW90: 16087
B91: 3 | C91: 84 | E91: MICRORED VEGUETA | F91: =SUM(H91:I91) -> 20046 | H91: 9925.7769 | I91: 10120.2231 | K91: =K58 -> 172.80735 | L91: =L58 -> 176.19265 | M91: 171.81705 | N91: 175.18295 | O91: 172.3122 | P91: 175.6878 | Q91: 171.3219 | R91: 174.6781 | S91: 173.3025 | T91: 176.6975 | U91: 856.6095 | V91: 873.3905 | W91: 339.6729 | X91: 346.3271 | Y91: 1104.67965 | Z91: 1126.32035 | AA91: 384.73155 | AB91: 392.26845 | AC91: 893.74575 | AD91: 911.25425 | AE91: 884.83305 | AF91: 902.16695 | AG91: 849.18225 | AH91: 865.81775 | AI91: 710.0451 | AJ91: 723.9549 | AK91: 648.6465 | AL91: 661.3535 | AM91: 581.80125 | AN91: 593.19875 | AO91: 467.4216 | AP91: 476.5784 | AQ91: 382.2558 | AR91: 389.7442 | AS91: 299.0706 | AT91: 304.9294 | AU91: 233.21565 | AV91: 237.78435 | AW91: 181.2249 | AX91: 184.7751 | AY91: 129.23415 | AZ91: 131.76585 | BA91: 117.8457 | BB91: 120.1543 | BC91: 613 | BD91: 498 | BE91: 104 | BF91: 11 | BG91: 351 | BH91: 27 | BI91: 1839 | BJ91: 5732 | BL91: =BL58 -> 349 | BM91: 1391 | BN91: 4156 | BO91: 4647 | BP91: =BP58 -> 2231 | BQ91: 4369 | BR91: 7350 | BS91: 1940 | BU91: =BU58 -> 1730 | BV91: 3694 | BW91: 10942
B92: 4 | C92: 85 | E92: MICRORED CHURIN - OYON | F92: 28570 | H92: 14146.4355 | I92: 14423.5645 | K92: =K18+K35+K40+K67+K73+K75+K81+K83 -> 247.07985 | L92: =L18+L35+L40+L67+L73+L75+L81+L83 -> 251.92015 | M92: 244.6041 | N92: 249.3959 | O92: 245.09925 | P92: 249.90075 | Q92: 246.08955 | R92: 250.91045 | S92: 244.10895 | T92: 248.89105 | U92: 1220.54475 | V92: 1244.45525 | W92: 484.75185 | X92: 494.24815 | Y92: 1575.07215 | Z92: 1605.92785 | AA92: 547.6359 | AB92: 558.3641 | AC92: 1273.5258 | AD92: 1298.4742 | AE92: 1261.14705 | AF92: 1285.85295 | AG92: 1210.64175 | AH92: 1234.35825 | AI92: 1011.59145 | AJ92: 1031.40855 | AK92: 923.9499 | AL92: 942.0501 | AM92: 828.8811 | AN92: 845.1189 | AO92: 666.4719 | AP92: 679.5281 | AQ92: 545.16015 | AR92: 555.83985 | AS92: 425.829 | AT92: 434.171 | AU92: 331.7505 | AV92: 338.2495 | AW92: 257.97315 | AX92: 263.02685 | AY92: 185.1861 | AZ92: 188.8139 | BA92: 169.3413 | BB92: 172.6587 | BC92: 875 | BD92: 711 | BE92: 150 | BF92: 14 | BG92: 503 | BH92: 38 | BI92: 2621 | BJ92: 8170 | BL92: =BL18+BL35+BL40+BL67+BL73+BL75+BL81+BL83 -> 499 | BM92: 1979 | BN92: 5922 | BO92: 6625 | BP92: =BP18+BP35+BP40+BP67+BP73+BP75+BP81+BP83 -> 3181 | BQ92: 6225 | BR92: 10475 | BS92: 2767 | BU92: =BU18+BU35+BU40+BU67+BU73+BU75+BU81+BU83 -> 2465 | BV92: 5266 | BW92: 15594

Sheet etapas y mredes
C2: POBLACION ASIGNADA POR DISTRITO SIERRA, HOSPITAL, MICROREDES Y POR ETAPAS DE VIDA 2010
C7: DISTRITO | P7: MICROREDES
C8: 66 | D8: 68 | E8: 11 | F8: 74 | G8: 60 | H8: 28 | I8: 76 | J8: 33 | N8: 4 | P8: 81 | Q8: 82 | R8: 83 | S8: 84 | T8: 85
B9: POBLACION POR ETAPAS DE VIDA | C9: Andajes | D9: Caujul | E9: Checras | F9: Naván | G9: Oyón | H9: Paccho | I9: Pachangara | J9: Santa Leonor | K9: TOTAL | L9: PORC. (%) | N9: HOSPITAL HUACHO | P9: HUAURA | Q9: HUALMAY | R9: SAYAN | S9: VEGUETA | T9: CHURIN OYON | U9: Total Microredes
A10: 58 | B10: Neonatal (0-28dias) | C10: =VLOOKUP(C8,Poblacion!$C$8:$BW$92,A10) -> 2 | D10: =VLOOKUP($D$8,Poblacion!$C$8:$BW$92,A10) -> 1 | E10: =VLOOKUP($E$8,Poblacion!$C$8:$BW$92,A10) -> 2 | F10: =VLOOKUP($F$8,Poblacion!$C$8:$BW$92,A10) -> 2 | G10: =VLOOKUP($G$8,Poblacion!$C$8:$BW$92,A10) -> 21 | H10: =VLOOKUP($H$8,Poblacion!$C$8:$BW$92,A10) -> 3 | I10: =VLOOKUP($I$8,Poblacion!$C$8:$BW$92,A10) -> 5 | J10: =VLOOKUP($J$8,Poblacion!$C$8:$BW$92,A10) -> 2 | K10: =SUM(C10:J10) -> 38 | L10: =IFERROR((K10/$K$20)*100,0) -> 0.1330066503 | N10: =VLOOKUP(N$8,Poblacion!$C$8:$BW$92,A10) -> 65 | P10: =VLOOKUP(P$8,Poblacion!$C$8:$BW$92,A10) -> 45 | Q10: =VLOOKUP(Q$8,Poblacion!$C$8:$BW$92,A10) -> 105 | R10: =VLOOKUP(R$8,Poblacion!$C$8:$BW$92,A10) -> 38 | S10: =VLOOKUP(S$8,Poblacion!$C$8:$BW$92,A10) -> 27 | T10: =VLOOKUP(T$8,Poblacion!$C$8:$BW$92,A10) -> 38 | U10: =SUM(P10:T10) -> 253
A11: 62 | B11: Infantil (Men.1año) | C11: =VLOOKUP($C$8,Poblacion!$C$8:$BW$92,A11) -> 23 | D11: =VLOOKUP($D$8,Poblacion!$C$8:$BW$92,A11) -> 16 | E11: =VLOOKUP($E$8,Poblacion!$C$8:$BW$92,A11) -> 27 | F11: =VLOOKUP($F$8,Poblacion!$C$8:$BW$92,A11) -> 24 | G11: =VLOOKUP($G$8,Poblacion!$C$8:$BW$92,A11) -> 268 | H11: =VLOOKUP($H$8,Poblacion!$C$8:$BW$92,A11) -> 41 | I11: =VLOOKUP($I$8,Poblacion!$C$8:$BW$92,A11) -> 70 | J11: =VLOOKUP($J$8,Poblacion!$C$8:$BW$92,A11) -> 30 | K11: =SUM(C11:J11) -> 499 | L11: =IFERROR((K11/$K$20)*100,0) -> 1.746587329 | N11: =VLOOKUP(N$8,Poblacion!$C$8:$BW$92,A11) -> 844 | P11: =VLOOKUP(P$8,Poblacion!$C$8:$BW$92,A11) -> 652 | Q11: =VLOOKUP(Q$8,Poblacion!$C$8:$BW$92,A11) -> 1367 | R11: =VLOOKUP(R$8,Poblacion!$C$8:$BW$92,A11) -> 515 | S11: =VLOOKUP(S$8,Poblacion!$C$8:$BW$92,A11) -> 349 | T11: =VLOOKUP(T$8,Poblacion!$C$8:$BW$92,A11) -> 499 | U11: =SUM(P11:T11) -> 3382
A12: 63 | B12: Pre-escolar (01-04años) | C12: =VLOOKUP($C$8,Poblacion!$C$8:$BW$92,A12) -> 84 | D12: =VLOOKUP($D$8,Poblacion!$C$8:$BW$92,A12) -> 77 | E12: =VLOOKUP($E$8,Poblacion!$C$8:$BW$92,A12) -> 113 | F12: =VLOOKUP($F$8,Poblacion!$C$8:$BW$92,A12) -> 90 | G12: =VLOOKUP($G$8,Poblacion!$C$8:$BW$92,A12) -> 1068 | H12: =VLOOKUP($H$8,Poblacion!$C$8:$BW$92,A12) -> 155 | I12: =VLOOKUP($I$8,Poblacion!$C$8:$BW$92,A12) -> 276 | J12: =VLOOKUP($J$8,Poblacion!$C$8:$BW$92,A12) -> 116 | K12: 1979 | L12: 6.926846342 | N12: =VLOOKUP(N$8,Poblacion!$C$8:$BW$92,A12) -> 3376 | P12: =VLOOKUP(P$8,Poblacion!$C$8:$BW$92,A12) -> 2592 | Q12: =VLOOKUP(Q$8,Poblacion!$C$8:$BW$92,A12) -> 5459 | R12: =VLOOKUP(R$8,Poblacion!$C$8:$BW$92,A12) -> 2045 | S12: =VLOOKUP(S$8,Poblacion!$C$8:$BW$92,A12) -> 1391 | T12: =VLOOKUP(T$8,Poblacion!$C$8:$BW$92,A12) -> 1979 | U12: 13466
A13: 64 | B13: Niño (0-11años) | C13: =VLOOKUP($C$8,Poblacion!$C$8:$BW$92,A13) -> 255 | D13: =VLOOKUP($D$8,Poblacion!$C$8:$BW$92,A13) -> 228 | E13: =VLOOKUP($E$8,Poblacion!$C$8:$BW$92,A13) -> 337 | F13: =VLOOKUP($F$8,Poblacion!$C$8:$BW$92,A13) -> 269 | G13: =VLOOKUP($G$8,Poblacion!$C$8:$BW$92,A13) -> 3191 | H13: =VLOOKUP($H$8,Poblacion!$C$8:$BW$92,A13) -> 468 | I13: =VLOOKUP($I$8,Poblacion!$C$8:$BW$92,A13) -> 826 | J13: =VLOOKUP($J$8,Poblacion!$C$8:$BW$92,A13) -> 348 | K13: 5922 | L13: 20.7280364 | N13: =VLOOKUP(N$8,Poblacion!$C$8:$BW$92,A13) -> 10087 | P13: =VLOOKUP(P$8,Poblacion!$C$8:$BW$92,A13) -> 7747 | Q13: =VLOOKUP(Q$8,Poblacion!$C$8:$BW$92,A13) -> 16309 | R13: =VLOOKUP(R$8,Poblacion!$C$8:$BW$92,A13) -> 6111 | S13: =VLOOKUP(S$8,Poblacion!$C$8:$BW$92,A13) -> 4156 | T13: =VLOOKUP(T$8,Poblacion!$C$8:$BW$92,A13) -> 5922 | U13: 40245
A14: 65 | B14: Escolar (05-17años) | C14: =VLOOKUP($C$8,Poblacion!$C$8:$BW$92,A14) -> 284 | D14: =VLOOKUP($D$8,Poblacion!$C$8:$BW$92,A14) -> 259 | E14: =VLOOKUP($E$8,Poblacion!$C$8:$BW$92,A14) -> 380 | F14: =VLOOKUP($F$8,Poblacion!$C$8:$BW$92,A14) -> 299 | G14: =VLOOKUP($G$8,Poblacion!$C$8:$BW$92,A14) -> 3567 | H14: =VLOOKUP($H$8,Poblacion!$C$8:$BW$92,A14) -> 524 | I14: =VLOOKUP($I$8,Poblacion!$C$8:$BW$92,A14) -> 925 | J14: =VLOOKUP($J$8,Poblacion!$C$8:$BW$92,A14) -> 387 | K14: 6625 | L14: 23.18865943 | N14: =VLOOKUP(N$8,Poblacion!$C$8:$BW$92,A14) -> 11284 | P14: =VLOOKUP(P$8,Poblacion!$C$8:$BW$92,A14) -> 8659 | Q14: =VLOOKUP(Q$8,Poblacion!$C$8:$BW$92,A14) -> 18238 | R14: =VLOOKUP(R$8,Poblacion!$C$8:$BW$92,A14) -> 6832 | S14: =VLOOKUP(S$8,Poblacion!$C$8:$BW$92,A14) -> 4647 | T14: =VLOOKUP(T$8,Poblacion!$C$8:$BW$92,A14) -> 6625 | U14: 45001
A15: 66 | B15: Adolescente (12-17años) | C15: =VLOOKUP($C$8,Poblacion!$C$8:$BW$92,A15) -> 136 | D15: =VLOOKUP($D$8,Poblacion!$C$8:$BW$92,A15) -> 124 | E15: =VLOOKUP($E$8,Poblacion!$C$8:$BW$92,A15) -> 183 | F15: =VLOOKUP($F$8,Poblacion!$C$8:$BW$92,A15) -> 144 | G15: =VLOOKUP($G$8,Poblacion!$C$8:$BW$92,A15) -> 1712 | H15: =VLOOKUP($H$8,Poblacion!$C$8:$BW$92,A15) -> 252 | I15: =VLOOKUP($I$8,Poblacion!$C$8:$BW$92,A15) -> 445 | J15: =VLOOKUP($J$8,Poblacion!$C$8:$BW$92,A15) -> 185 | K15: 3181 | L15: 11.1340567 | N15: =VLOOKUP(N$8,Poblacion!$C$8:$BW$92,A15) -> 5417 | P15: =VLOOKUP(P$8,Poblacion!$C$8:$BW$92,A15) -> 4156 | Q15: =VLOOKUP(Q$8,Poblacion!$C$8:$BW$92,A15) -> 8755 | R15: =VLOOKUP(R$8,Poblacion!$C$8:$BW$92,A15) -> 3281 | S15: =VLOOKUP(S$8,Poblacion!$C$8:$BW$92,A15) -> 2231 | T15: =VLOOKUP(T$8,Poblacion!$C$8:$BW$92,A15) -> 3181 | U15: 21604
A16: 67 | B16: Adulto Joven (18-29años) | C16: =VLOOKUP($C$8,Poblacion!$C$8:$BW$92,A16) -> 269 | D16: =VLOOKUP($D$8,Poblacion!$C$8:$BW$92,A16) -> 239 | E16: =VLOOKUP($E$8,Poblacion!$C$8:$BW$92,A16) -> 356 | F16: =VLOOKUP($F$8,Poblacion!$C$8:$BW$92,A16) -> 281 | G16: =VLOOKUP($G$8,Poblacion!$C$8:$BW$92,A16) -> 3356 | H16: =VLOOKUP($H$8,Poblacion!$C$8:$BW$92,A16) -> 491 | I16: =VLOOKUP($I$8,Poblacion!$C$8:$BW$92,A16) -> 869 | J16: =VLOOKUP($J$8,Poblacion!$C$8:$BW$92,A16) -> 364 | K16: 6225 | L16: 21.78858943 | N16: =VLOOKUP(N$8,Poblacion!$C$8:$BW$92,A16) -> 10611 | P16: =VLOOKUP(P$8,Poblacion!$C$8:$BW$92,A16) -> 8142 | Q16: =VLOOKUP(Q$8,Poblacion!$C$8:$BW$92,A16) -> 17149 | R16: =VLOOKUP(R$8,Poblacion!$C$8:$BW$92,A16) -> 6424 | S16: =VLOOKUP(S$8,Poblacion!$C$8:$BW$92,A16) -> 4369 | T16: =VLOOKUP(T$8,Poblacion!$C$8:$BW$92,A16) -> 6225 | U16: 42309
A17: 68 | B17: Adulto (30-59años) | C17: =VLOOKUP($C$8,Poblacion!$C$8:$BW$92,A17) -> 453 | D17: =VLOOKUP($D$8,Poblacion!$C$8:$BW$92,A17) -> 404 | E17: =VLOOKUP($E$8,Poblacion!$C$8:$BW$92,A17) -> 600 | F17: =VLOOKUP($F$8,Poblacion!$C$8:$BW$92,A17) -> 473 | G17: =VLOOKUP($G$8,Poblacion!$C$8:$BW$92,A17) -> 5645 | H17: =VLOOKUP($H$8,Poblacion!$C$8:$BW$92,A17) -> 826 | I17: =VLOOKUP($I$8,Poblacion!$C$8:$BW$92,A17) -> 1462 | J17: =VLOOKUP($J$8,Poblacion!$C$8:$BW$92,A17) -> 612 | K17: 10475 | L17: 36.66433322 | N17: =VLOOKUP(N$8,Poblacion!$C$8:$BW$92,A17) -> 17848 | P17: =VLOOKUP(P$8,Poblacion!$C$8:$BW$92,A17) -> 13695 | Q17: =VLOOKUP(Q$8,Poblacion!$C$8:$BW$92,A17) -> 28843 | R17: =VLOOKUP(R$8,Poblacion!$C$8:$BW$92,A17) -> 10804 | S17: =VLOOKUP(S$8,Poblacion!$C$8:$BW$92,A17) -> 7350 | T17: =VLOOKUP(T$8,Poblacion!$C$8:$BW$92,A17) -> 10475 | U17: 71167
A18: 69 | B18: Adu.Mayor (60 a MAS) | C18: =VLOOKUP($C$8,Poblacion!$C$8:$BW$92,A18) -> 121 | D18: =VLOOKUP($D$8,Poblacion!$C$8:$BW$92,A18) -> 106 | E18: =VLOOKUP($E$8,Poblacion!$C$8:$BW$92,A18) -> 161 | F18: =VLOOKUP($F$8,Poblacion!$C$8:$BW$92,A18) -> 124 | G18: =VLOOKUP($G$8,Poblacion!$C$8:$BW$92,A18) -> 1490 | H18: =VLOOKUP($H$8,Poblacion!$C$8:$BW$92,A18) -> 218 | I18: =VLOOKUP($I$8,Poblacion!$C$8:$BW$92,A18) -> 387 | J18: =VLOOKUP($J$8,Poblacion!$C$8:$BW$92,A18) -> 160 | K18: 2767 | L18: 9.684984249 | N18: =VLOOKUP(N$8,Poblacion!$C$8:$BW$92,A18) -> 4714 | P18: =VLOOKUP(P$8,Poblacion!$C$8:$BW$92,A18) -> 3615 | Q18: =VLOOKUP(Q$8,Poblacion!$C$8:$BW$92,A18) -> 7618 | R18: =VLOOKUP(R$8,Poblacion!$C$8:$BW$92,A18) -> 2852 | S18: =VLOOKUP(S$8,Poblacion!$C$8:$BW$92,A18) -> 1940 | T18: =VLOOKUP(T$8,Poblacion!$C$8:$BW$92,A18) -> 2767 | U18: 18792
A19: 53 | B19: Gestantes | C19: =VLOOKUP($C$8,Poblacion!$C$8:$BW$92,A19) -> 40 | D19: =VLOOKUP($D$8,Poblacion!$C$8:$BW$92,A19) -> 28 | E19: =VLOOKUP($E$8,Poblacion!$C$8:$BW$92,A19) -> 47 | F19: =VLOOKUP($F$8,Poblacion!$C$8:$BW$92,A19) -> 42 | G19: =VLOOKUP($G$8,Poblacion!$C$8:$BW$92,A19) -> 471 | H19: =VLOOKUP($H$8,Poblacion!$C$8:$BW$92,A19) -> 71 | I19: =VLOOKUP($I$8,Poblacion!$C$8:$BW$92,A19) -> 123 | J19: =VLOOKUP($J$8,Poblacion!$C$8:$BW$92,A19) -> 53 | K19: 875 | L19: 3.062653133 | N19: =VLOOKUP(N$8,Poblacion!$C$8:$BW$92,A19) -> 1479 | P19: =VLOOKUP(P$8,Poblacion!$C$8:$BW$92,A19) -> 1026 | Q19: =VLOOKUP(Q$8,Poblacion!$C$8:$BW$92,A19) -> 2394 | R19: =VLOOKUP(R$8,Poblacion!$C$8:$BW$92,A19) -> 892 | S19: =VLOOKUP(S$8,Poblacion!$C$8:$BW$92,A19) -> 613 | T19: =VLOOKUP(T$8,Poblacion!$C$8:$BW$92,A19) -> 875 | U19: 5800
B20: TOTAL | C20: =C13+C15+C16+C17+C18 -> 1234 | D20: =D13+D15+D16+D17+D18 -> 1101 | E20: 1637 | F20: 1291 | G20: 15394 | H20: 2255 | I20: 3989 | J20: 1669 | K20: =K13+K15+K16+K17+K18 -> 28570 | L20: =IFERROR((K20/$K$20)*100,0) -> 100 | N20: =N13+N15+N16+N17+N18 -> 48677 | P20: 37355 | Q20: 78674 | R20: 29472 | S20: 20046 | T20: 28570 | U20: 194117
B21: =Interfaz!$A$22 -> Elaboración: Área de Estadística - RIS Huaura Oyón.
G25: 10 | H25: =VLOOKUP($G$25,Poblacion!$C$8:$E$92,3,FALSE) -> C.S. CARQUIN
B26: POBLACION POR ETAPAS DE VIDA | C26: TOTAL | E26: PORC. (%) | H26: =+"POBLACION POR ETAPAS DE VIDA DEL "&$H$25 -> POBLACION POR ETAPAS DE VIDA DEL C.S. CARQUIN
A27: 58 | B27: Neonatal (0-28dias) | C27: =VLOOKUP($G$25,Poblacion!$C$8:$BW$92,$A27) -> 9 | E27: =IFERROR(($C27/$C$37)*100,0) -> 0.1346297681 | H27: =B30 -> Niño (0-11años) | I27: =C30 -> 1385
A28: 62 | B28: Infantil (Men.1año) | C28: =VLOOKUP($G$25,Poblacion!$C$8:$BW$92,$A28) -> 115 | E28: =IFERROR(($C28/$C$37)*100,0) -> 1.72026926 | H28: =B32 -> Adolescente (12-17años) | I28: 744
A29: 63 | B29: Pre-escolar (01-04años) | C29: =VLOOKUP($G$25,Poblacion!$C$8:$BW$92,$A29) -> 464 | E29: 6.940912491 | H29: Adulto Joven (18-29años) | I29: 1457
A30: 64 | B30: Niño (0-11años) | C30: =VLOOKUP($G$25,Poblacion!$C$8:$BW$92,$A30) -> 1385 | E30: 20.71802543 | H30: Adulto (30-59años) | I30: 2452
A31: 65 | B31: Escolar (05-17años) | C31: =VLOOKUP($G$25,Poblacion!$C$8:$BW$92,$A31) -> 1550 | E31: 23.18623785 | H31: Adu.Mayor (60 a MAS) | I31: 647
A32: 66 | B32: Adolescente (12-17años) | C32: =VLOOKUP($G$25,Poblacion!$C$8:$BW$92,$A32) -> 744 | E32: 11.12939417
A33: 67 | B33: Adulto Joven (18-29años) | C33: =VLOOKUP($G$25,Poblacion!$C$8:$BW$92,$A33) -> 1457 | E33: 21.79506358
A34: 68 | B34: Adulto (30-59años) | C34: =VLOOKUP($G$25,Poblacion!$C$8:$BW$92,$A34) -> 2452 | E34: 36.67913239
A35: 69 | B35: Adu.Mayor (60 a MAS) | C35: =VLOOKUP($G$25,Poblacion!$C$8:$BW$92,$A35) -> 647 | E35: 9.678384443
A36: 53 | B36: Gestantes | C36: =VLOOKUP($G$25,Poblacion!$C$8:$BW$92,$A36) -> 201 | E36: 3.006731488
B37: TOTAL | C37: =C30+C32+C33+C34+C35 -> 6685 | E37: 100
B38: =Interfaz!$A$22 -> Elaboración: Área de Estadística - RIS Huaura Oyón.

Sheet Pobla_EESS
D2: POBLACIÓN SEGÚN DISTRITOS Y EE.SS - 2010
D8: SIN MICRORED | K8: MICRORED HUALMAY
D9: DISTRITO | E9: POBLACIÓN | F9: EE.SS | G9: POBLACIÓN | H9: MASCULINO | I9: FEMENINO | K9: DISTRITO | L9: POBLACIÓN | M9: EE.SS | N9: POBLACIÓN | O9: MASCULINO | P9: FEMENINO
D10: HUACHO | E10: =G10 -> 48677 | F10: HOSPITAL HUACHO | G10: =VLOOKUP($F10,Poblacion!$E$8:$I$92,2,FALSE) -> 48677 | H10: =VLOOKUP($F10,Poblacion!$E$8:$I$92,4,FALSE) -> 24102.41655 | I10: =VLOOKUP($F10,Poblacion!$E$8:$I$92,5,FALSE) -> 24574.58345 | K10: HUALMAY | L10: =SUM(N10:N12) -> 29421 | M10: C.S. HUALMAY | N10: =VLOOKUP($M10,Poblacion!$E$8:$I$92,2,FALSE) -> 15593 | O10: =VLOOKUP($M10,Poblacion!$E$8:$I$92,4,FALSE) -> 7720.87395 | P10: =VLOOKUP($M10,Poblacion!$E$8:$I$92,5,FALSE) -> 7872.12605
D11: HUACHO | F11: CLINICA SAN PEDRO | G11: 0 | K11: HUALMAY | M11: P.S.DGO. MANDAMIENTO | N11: =VLOOKUP($M11,Poblacion!$E$8:$I$92,2,FALSE) -> 9709 | O11: =VLOOKUP($M11,Poblacion!$E$8:$I$92,4,FALSE) -> 4807.41135 | P11: =VLOOKUP($M11,Poblacion!$E$8:$I$92,5,FALSE) -> 4901.58865
D12: HUACHO | F12: ESSALUD GUSTAVO LA NATA | G12: 0 | K12: HUALMAY | M12: P.S. CAMPO ALEGRE | N12: =VLOOKUP($M12,Poblacion!$E$8:$I$92,2,FALSE) -> 4119 | O12: =VLOOKUP($M12,Poblacion!$E$8:$I$92,4,FALSE) -> 2039.52285 | P12: =VLOOKUP($M12,Poblacion!$E$8:$I$92,5,FALSE) -> 2079.47715
D13: HUACHO | F13: CLINICA SAN BARTOLOME | G13: 0 | K13: S.MARIA | L13: =SUM(N13:N17) -> 30399 | M13: C.S. SANTA MARIA | N13: =VLOOKUP($M13,Poblacion!$E$8:$I$92,2,FALSE) -> 8511 | O13: =VLOOKUP($M13,Poblacion!$E$8:$I$92,4,FALSE) -> 4214.22165 | P13: =VLOOKUP($M13,Poblacion!$E$8:$I$92,5,FALSE) -> 4296.77835
D14: HUACHO | F14: GOLD ESTANDAR EIRL. | G14: 0 | K14: S.MARIA | M14: P.S. CHONTA | N14: =VLOOKUP($M14,Poblacion!$E$8:$I$92,2,FALSE) -> 4560 | O14: =VLOOKUP($M14,Poblacion!$E$8:$I$92,4,FALSE) -> 2257.884 | P14: =VLOOKUP($M14,Poblacion!$E$8:$I$92,5,FALSE) -> 2302.116
D15: CARQUIN | F15: INSITUTO NACIONAL PENITENCIARIO CARQUIN | G15: 0 | K15: S.MARIA | M15: P.S. ZAPATA | N15: =VLOOKUP($M15,Poblacion!$E$8:$I$92,2,FALSE) -> 2432 | O15: =VLOOKUP($M15,Poblacion!$E$8:$I$92,4,FALSE) -> 1204.2048 | P15: =VLOOKUP($M15,Poblacion!$E$8:$I$92,5,FALSE) -> 1227.7952
F16: OTROS ESTABLECIMIENTOS | G16: 0 | K16: S.MARIA | M16: P.S. AMADO VELASQUEZ | N16: =VLOOKUP($M16,Poblacion!$E$8:$I$92,2,FALSE) -> 7904 | O16: =VLOOKUP($M16,Poblacion!$E$8:$I$92,4,FALSE) -> 3913.6656 | P16: =VLOOKUP($M16,Poblacion!$E$8:$I$92,5,FALSE) -> 3990.3344
D17: TOTAL SIN MICRORED | G17: =SUM(G10:G16) -> 48677 | H17: =SUM(H10:H16) -> 24102.41655 | I17: =SUM(I10:I16) -> 24574.58345 | K17: S.MARIA | M17: P.S. SAN BARTOLOME | N17: =VLOOKUP($M17,Poblacion!$E$8:$I$92,2,FALSE) -> 6992 | O17: =VLOOKUP($M17,Poblacion!$E$8:$I$92,4,FALSE) -> 3462.0888 | P17: =VLOOKUP($M17,Poblacion!$E$8:$I$92,5,FALSE) -> 3529.9112
D18: ='etapas y mredes'!B38 -> Elaboración: Área de Estadística - RIS Huaura Oyón. | K18: CARQUIN | L18: =N18 -> 6685 | M18: C.S. CARQUIN | N18: =VLOOKUP($M18,Poblacion!$E$8:$I$92,2,FALSE) -> 6685 | O18: =VLOOKUP($M18,Poblacion!$E$8:$I$92,4,FALSE) -> 3310.07775 | P18: =VLOOKUP($M18,Poblacion!$E$8:$I$92,5,FALSE) -> 3374.92225
K19: HUACHO | L19: =N19 -> 12169 | M19: P.S. MANZANARES | N19: =VLOOKUP($M19,Poblacion!$E$8:$I$92,2,FALSE) -> 12169 | O19: =VLOOKUP($M19,Poblacion!$E$8:$I$92,4,FALSE) -> 6025.48035 | P19: =VLOOKUP($M19,Poblacion!$E$8:$I$92,5,FALSE) -> 6143.51965
K20: TOTAL MCR HUALMAY | M20: TOTAL MICRORED HUALMAY | N20: =SUM(N10:N19) -> 78674 | O20: =SUM(O10:O19) -> 38955.4311 | P20: 39718.5689
K21: =D18 -> Elaboración: Área de Estadística - RIS Huaura Oyón.
D24: MICRORED HUAURA | K24: MICRORED VEGUETA
D25: DISTRITO | E25: POBLACIÓN | F25: EE.SS | G25: POBLACIÓN | H25: MASCULINO | I25: FEMENINO | K25: DISTRITO | L25: POBLACIÓN | M25: EE.SS | N25: POBLACIÓN | O25: MASCULINO | P25: FEMENINO
D26: HUAURA | E26: =SUM(G26:G30) -> 34254 | F26: C.S HUAURA | G26: =VLOOKUP($F26,Poblacion!$E$8:$I$92,2,FALSE) -> 15413 | H26: =VLOOKUP($F26,Poblacion!$E$8:$I$92,4,FALSE) -> 7631.74695 | I26: =VLOOKUP($F26,Poblacion!$E$8:$I$92,5,FALSE) -> 7781.25305 | K26: VEGUETA | L26: =SUM(N26:N31) -> 20046 | M26: C.S. VEGUETA | N26: =VLOOKUP($M26,Poblacion!$E$8:$I$92,2,FALSE) -> 6014 | O26: =VLOOKUP($M26,Poblacion!$E$8:$I$92,4,FALSE) -> 2977.8321 | P26: =VLOOKUP($M26,Poblacion!$E$8:$I$92,5,FALSE) -> 3036.1679
D27: HUAURA | F27: P.S. MAT. EL SOCORRO | G27: =VLOOKUP($F27,Poblacion!$E$8:$I$92,2,FALSE) -> 11990 | H27: =VLOOKUP($F27,Poblacion!$E$8:$I$92,4,FALSE) -> 5936.8485 | I27: =VLOOKUP($F27,Poblacion!$E$8:$I$92,5,FALSE) -> 6053.1515 | K27: VEGUETA | M27: P.S. MAZO | N27: =VLOOKUP($M27,Poblacion!$E$8:$I$92,2,FALSE) -> 2005 | O27: =VLOOKUP($M27,Poblacion!$E$8:$I$92,4,FALSE) -> 992.77575 | P27: =VLOOKUP($M27,Poblacion!$E$8:$I$92,5,FALSE) -> 1012.22425
D28: HUAURA | F28: P.S. HUMAYA | G28: =VLOOKUP($F28,Poblacion!$E$8:$I$92,2,FALSE) -> 4282 | H28: =VLOOKUP($F28,Poblacion!$E$8:$I$92,4,FALSE) -> 2120.2323 | I28: =VLOOKUP($F28,Poblacion!$E$8:$I$92,5,FALSE) -> 2161.7677 | K28: VEGUETA | M28: P.S. PRIMAVERA | N28: =VLOOKUP($M28,Poblacion!$E$8:$I$92,2,FALSE) -> 2205 | O28: =VLOOKUP($M28,Poblacion!$E$8:$I$92,4,FALSE) -> 1091.80575 | P28: =VLOOKUP($M28,Poblacion!$E$8:$I$92,5,FALSE) -> 1113.19425
D29: HUAURA | F29: P.S. VILCAHUAURA | G29: =VLOOKUP($F29,Poblacion!$E$8:$I$92,2,FALSE) -> 2056 | H29: =VLOOKUP($F29,Poblacion!$E$8:$I$92,4,FALSE) -> 1018.0284 | I29: =VLOOKUP($F29,Poblacion!$E$8:$I$92,5,FALSE) -> 1037.9716 | K29: VEGUETA | M29: P.S. JOSE C. MARIATEGUI | N29: =VLOOKUP($M29,Poblacion!$E$8:$I$92,2,FALSE) -> 4810 | O29: =VLOOKUP($M29,Poblacion!$E$8:$I$92,4,FALSE) -> 2381.6715 | P29: =VLOOKUP($M29,Poblacion!$E$8:$I$92,5,FALSE) -> 2428.3285
D30: HUAURA | F30: P.S. PEÑICO | G30: =VLOOKUP($F30,Poblacion!$E$8:$I$92,2,FALSE) -> 513 | H30: =VLOOKUP($F30,Poblacion!$E$8:$I$92,4,FALSE) -> 254.01195 | I30: =VLOOKUP($F30,Poblacion!$E$8:$I$92,5,FALSE) -> 258.98805 | K30: VEGUETA | M30: P.S. MEDIO MUNDO | N30: =VLOOKUP($M30,Poblacion!$E$8:$I$92,2,FALSE) -> 4210 | O30: =VLOOKUP($M30,Poblacion!$E$8:$I$92,4,FALSE) -> 2084.5815 | P30: =VLOOKUP($M30,Poblacion!$E$8:$I$92,5,FALSE) -> 2125.4185
D31: AMBAR | E31: =SUM(G31:G32) -> 3101 | F31: C.S. AMBAR | G31: =VLOOKUP($F31,Poblacion!$E$8:$I$92,2,FALSE) -> 1861 | H31: =VLOOKUP($F31,Poblacion!$E$8:$I$92,4,FALSE) -> 921.47415 | I31: =VLOOKUP($F31,Poblacion!$E$8:$I$92,5,FALSE) -> 939.52585 | K31: VEGUETA | M31: P.S. TIROLER | N31: =VLOOKUP($M31,Poblacion!$E$8:$I$92,2,FALSE) -> 802 | O31: =VLOOKUP($M31,Poblacion!$E$8:$I$92,4,FALSE) -> 397.1103 | P31: =VLOOKUP($M31,Poblacion!$E$8:$I$92,5,FALSE) -> 404.8897
D32: AMBAR | F32: P.S. AYNACA | G32: =VLOOKUP($F32,Poblacion!$E$8:$I$92,2,FALSE) -> 1240 | H32: =VLOOKUP($F32,Poblacion!$E$8:$I$92,4,FALSE) -> 613.986 | I32: =VLOOKUP($F32,Poblacion!$E$8:$I$92,5,FALSE) -> 626.014 | K32: TOTAL MCR VEGUETA | N32: =SUM(N26:N31) -> 20046 | O32: =SUM(O26:O31) -> 9925.7769 | P32: 10120.2231
D33: TOTAL MCR HUAURA | F33: TOTAL MICRORED HUAURA | G33: =SUM(G26:G32) -> 37355 | H33: =SUM(H26:H32) -> 18496.32825 | I33: 18858.67175 | K33: =D34 -> Elaboración: Área de Estadística - RIS Huaura Oyón.
D34: =K21 -> Elaboración: Área de Estadística - RIS Huaura Oyón.
D38: MICRORED SAYAN | K38: MICRORED CHURIN OYÓN
D39: DISTRITO | E39: POBLACIÓN | F39: EE.SS | G39: POBLACIÓN | H39: MASCULINO | I39: FEMENINO | K39: DISTRITO | L39: POBLACIÓN | M39: EE.SS | N39: POBLACIÓN | O39: MASCULINO | P39: FEMENINO
D40: SAYAN | E40: =SUM(G40:G46) -> 24103 | F40: C.S. SAYAN | G40: =VLOOKUP($F40,Poblacion!$E$8:$I$92,2,FALSE) -> 9882 | H40: =VLOOKUP($F40,Poblacion!$E$8:$I$92,4,FALSE) -> 4893.0723 | I40: =VLOOKUP($F40,Poblacion!$E$8:$I$92,5,FALSE) -> 4988.9277 | K40: PACHANGARA | L40: =SUM(N40:N42) -> 3989 | M40: C.S. CHURIN | N40: =VLOOKUP($M40,Poblacion!$E$8:$I$92,2,FALSE) -> 3151 | O40: =VLOOKUP($M40,Poblacion!$E$8:$I$92,4,FALSE) -> 1560.21765 | P40: =VLOOKUP($M40,Poblacion!$E$8:$I$92,5,FALSE) -> 1590.78235
D41: SAYAN | F41: P.S. 9 DE OCTUBRE | G41: =VLOOKUP($F41,Poblacion!$E$8:$I$92,2,FALSE) -> 5063 | H41: =VLOOKUP($F41,Poblacion!$E$8:$I$92,4,FALSE) -> 2506.94445 | I41: =VLOOKUP($F41,Poblacion!$E$8:$I$92,5,FALSE) -> 2556.05555 | K41: PACHANGARA | M41: P.S. PACHANGARA | N41: =VLOOKUP($M41,Poblacion!$E$8:$I$92,2,FALSE) -> 399 | O41: =VLOOKUP($M41,Poblacion!$E$8:$I$92,4,FALSE) -> 197.56485 | P41: =VLOOKUP($M41,Poblacion!$E$8:$I$92,5,FALSE) -> 201.43515
D42: SAYAN | F42: P.S. CHAMBARA | G42: =VLOOKUP($F42,Poblacion!$E$8:$I$92,2,FALSE) -> 1205 | H42: =VLOOKUP($F42,Poblacion!$E$8:$I$92,4,FALSE) -> 596.65575 | I42: =VLOOKUP($F42,Poblacion!$E$8:$I$92,5,FALSE) -> 608.34425 | K42: PACHANGARA | M42: P.S. HUANCAHUASI | N42: =VLOOKUP($M42,Poblacion!$E$8:$I$92,2,FALSE) -> 439 | O42: =VLOOKUP($M42,Poblacion!$E$8:$I$92,4,FALSE) -> 217.37085 | P42: =VLOOKUP($M42,Poblacion!$E$8:$I$92,5,FALSE) -> 221.62915
D43: SAYAN | F43: P.S. LA MERCED | G43: =VLOOKUP($F43,Poblacion!$E$8:$I$92,2,FALSE) -> 2410 | H43: =VLOOKUP($F43,Poblacion!$E$8:$I$92,4,FALSE) -> 1193.3115 | I43: =VLOOKUP($F43,Poblacion!$E$8:$I$92,5,FALSE) -> 1216.6885 | K43: OYON | L43: =SUM(N43:N47) -> 15394 | M43: C.S. OYON | N43: =VLOOKUP($M43,Poblacion!$E$8:$I$92,2,FALSE) -> 12777 | O43: =VLOOKUP($M43,Poblacion!$E$8:$I$92,4,FALSE) -> 6326.53155 | P43: =VLOOKUP($M43,Poblacion!$E$8:$I$92,5,FALSE) -> 6450.46845
D44: SAYAN | F44: P.S. LA VILLA | G44: =VLOOKUP($F44,Poblacion!$E$8:$I$92,2,FALSE) -> 3856 | H44: =VLOOKUP($F44,Poblacion!$E$8:$I$92,4,FALSE) -> 1909.2984 | I44: =VLOOKUP($F44,Poblacion!$E$8:$I$92,5,FALSE) -> 1946.7016 | K44: OYON | M44: P.S. MALLAY | N44: =VLOOKUP($M44,Poblacion!$E$8:$I$92,2,FALSE) -> 770 | O44: =VLOOKUP($M44,Poblacion!$E$8:$I$92,4,FALSE) -> 381.2655 | P44: =VLOOKUP($M44,Poblacion!$E$8:$I$92,5,FALSE) -> 388.7345
D45: SAYAN | F45: P.S. EL AHORCADO | G45: =VLOOKUP($F45,Poblacion!$E$8:$I$92,2,FALSE) -> 964 | H45: =VLOOKUP($F45,Poblacion!$E$8:$I$92,4,FALSE) -> 477.3246 | I45: =VLOOKUP($F45,Poblacion!$E$8:$I$92,5,FALSE) -> 486.6754 | K45: OYON | M45: P.S. NAVA | N45: =VLOOKUP($M45,Poblacion!$E$8:$I$92,2,FALSE) -> 154 | O45: =VLOOKUP($M45,Poblacion!$E$8:$I$92,4,FALSE) -> 76.2531 | P45: =VLOOKUP($M45,Poblacion!$E$8:$I$92,5,FALSE) -> 77.7469
D46: SAYAN | F46: P.S. LA UNION | G46: =VLOOKUP($F46,Poblacion!$E$8:$I$92,2,FALSE) -> 723 | H46: =VLOOKUP($F46,Poblacion!$E$8:$I$92,4,FALSE) -> 357.99345 | I46: =VLOOKUP($F46,Poblacion!$E$8:$I$92,5,FALSE) -> 365.00655 | K46: OYON | M46: P.S. TINTA | N46: =VLOOKUP($M46,Poblacion!$E$8:$I$92,2,FALSE) -> 462 | O46: =VLOOKUP($M46,Poblacion!$E$8:$I$92,4,FALSE) -> 228.7593 | P46: =VLOOKUP($M46,Poblacion!$E$8:$I$92,5,FALSE) -> 233.2407
D47: L.PRADO | E47: =SUM(G47:G50) -> 2208 | F47: P.S. AUQUIMARCA | G47: =VLOOKUP($F47,Poblacion!$E$8:$I$92,2,FALSE) -> 397 | H47: =VLOOKUP($F47,Poblacion!$E$8:$I$92,4,FALSE) -> 196.57455 | I47: =VLOOKUP($F47,Poblacion!$E$8:$I$92,5,FALSE) -> 200.42545 | K47: OYON | M47: P.S. RAPAZ | N47: =VLOOKUP($M47,Poblacion!$E$8:$I$92,2,FALSE) -> 1231 | O47: =VLOOKUP($M47,Poblacion!$E$8:$I$92,4,FALSE) -> 609.52965 | P47: =VLOOKUP($M47,Poblacion!$E$8:$I$92,5,FALSE) -> 621.47035
D48: L.PRADO | F48: P.S. PARAN | G48: =VLOOKUP($F48,Poblacion!$E$8:$I$92,2,FALSE) -> 883 | H48: =VLOOKUP($F48,Poblacion!$E$8:$I$92,4,FALSE) -> 437.21745 | I48: =VLOOKUP($F48,Poblacion!$E$8:$I$92,5,FALSE) -> 445.78255 | K48: ANDAJES | L48: =N48 -> 1234 | M48: P.S. ANDAJES | N48: =VLOOKUP($M48,Poblacion!$E$8:$I$92,2,FALSE) -> 1234 | O48: =VLOOKUP($M48,Poblacion!$E$8:$I$92,4,FALSE) -> 611.0151 | P48: =VLOOKUP($M48,Poblacion!$E$8:$I$92,5,FALSE) -> 622.9849
D49: L.PRADO | F49: P.S. SANTA CRUZ | G49: =VLOOKUP($F49,Poblacion!$E$8:$I$92,2,FALSE) -> 486 | H49: =VLOOKUP($F49,Poblacion!$E$8:$I$92,4,FALSE) -> 240.6429 | I49: =VLOOKUP($F49,Poblacion!$E$8:$I$92,5,FALSE) -> 245.3571 | K49: CAUJUL | L49: =N49 -> 1101 | M49: P.S. CAUJUL | N49: =VLOOKUP($M49,Poblacion!$E$8:$I$92,2,FALSE) -> 1101 | O49: =VLOOKUP($M49,Poblacion!$E$8:$I$92,4,FALSE) -> 545.16015 | P49: =VLOOKUP($M49,Poblacion!$E$8:$I$92,5,FALSE) -> 555.83985
D50: L.PRADO | F50: P.S. HUANANGUI | G50: =VLOOKUP($F50,Poblacion!$E$8:$I$92,2,FALSE) -> 442 | H50: =VLOOKUP($F50,Poblacion!$E$8:$I$92,4,FALSE) -> 218.8563 | I50: =VLOOKUP($F50,Poblacion!$E$8:$I$92,5,FALSE) -> 223.1437 | K50: NAVAN | L50: 1291 | M50: P.S. NAVAN | N50: =VLOOKUP($M50,Poblacion!$E$8:$I$92,2,FALSE) -> 1291 | O50: =VLOOKUP($M50,Poblacion!$E$8:$I$92,4,FALSE) -> 639.23865 | P50: =VLOOKUP($M50,Poblacion!$E$8:$I$92,5,FALSE) -> 651.76135
D51: COCHAMARCA | E51: =SUM(G51:G53) -> 1791 | F51: P.S. COCHAMARCA | G51: =VLOOKUP($F51,Poblacion!$E$8:$I$92,2,FALSE) -> 645 | H51: =VLOOKUP($F51,Poblacion!$E$8:$I$92,4,FALSE) -> 319.37175 | I51: =VLOOKUP($F51,Poblacion!$E$8:$I$92,5,FALSE) -> 325.62825 | K51: CHECRAS | L51: 1637 | M51: P.S. PUÑUN | N51: =VLOOKUP($M51,Poblacion!$E$8:$I$92,2,FALSE) -> 1637 | O51: =VLOOKUP($M51,Poblacion!$E$8:$I$92,4,FALSE) -> 810.56055 | P51: =VLOOKUP($M51,Poblacion!$E$8:$I$92,5,FALSE) -> 826.43945
D52: COCHAMARCA | F52: COLCAPAMPA | G52: =VLOOKUP($F52,Poblacion!$E$8:$I$92,2,FALSE) -> 842 | H52: =VLOOKUP($F52,Poblacion!$E$8:$I$92,4,FALSE) -> 416.9163 | I52: =VLOOKUP($F52,Poblacion!$E$8:$I$92,5,FALSE) -> 425.0837 | K52: PACCHO | L52: =SUM(N52:N55) -> 2255 | M52: P.S. PACCHO | N52: =VLOOKUP($M52,Poblacion!$E$8:$I$92,2,FALSE) -> 834 | O52: =VLOOKUP($M52,Poblacion!$E$8:$I$92,4,FALSE) -> 412.9551 | P52: =VLOOKUP($M52,Poblacion!$E$8:$I$92,5,FALSE) -> 421.0449
D53: COCHAMARCA | F53: YARUCAYA | G53: =VLOOKUP($F53,Poblacion!$E$8:$I$92,2,FALSE) -> 304 | H53: =VLOOKUP($F53,Poblacion!$E$8:$I$92,4,FALSE) -> 150.5256 | I53: =VLOOKUP($F53,Poblacion!$E$8:$I$92,5,FALSE) -> 153.4744 | K53: PACCHO | M53: P.S. LACSANGA | N53: =VLOOKUP($M53,Poblacion!$E$8:$I$92,2,FALSE) -> 496 | O53: =VLOOKUP($M53,Poblacion!$E$8:$I$92,4,FALSE) -> 245.5944 | P53: =VLOOKUP($M53,Poblacion!$E$8:$I$92,5,FALSE) -> 250.4056
K54: PACCHO | M54: P.S. AYARANGA | N54: =VLOOKUP($M54,Poblacion!$E$8:$I$92,2,FALSE) -> 429 | O54: =VLOOKUP($M54,Poblacion!$E$8:$I$92,4,FALSE) -> 212.41935 | P54: =VLOOKUP($M54,Poblacion!$E$8:$I$92,5,FALSE) -> 216.58065
D55: TOTAL MICRORED SAYAN | G55: =SUM(G40:G54) -> 28102 | H55: =SUM(H40:H54) -> 13914.7053 | I55: 14187.2947 | K55: PACCHO | M55: P.S. MUZGA | N55: =VLOOKUP($M55,Poblacion!$E$8:$I$92,2,FALSE) -> 496 | O55: =VLOOKUP($M55,Poblacion!$E$8:$I$92,4,FALSE) -> 245.5944 | P55: =VLOOKUP($M55,Poblacion!$E$8:$I$92,5,FALSE) -> 250.4056
D56: =K33 -> Elaboración: Área de Estadística - RIS Huaura Oyón. | K56: S.LEONOR | L56: =SUM(N56:N58) -> 1669 | M56: P.S. CHIUCHIN | N56: =VLOOKUP($M56,Poblacion!$E$8:$I$92,2,FALSE) -> 1018 | O56: =VLOOKUP($M56,Poblacion!$E$8:$I$92,4,FALSE) -> 504.0627 | P56: =VLOOKUP($M56,Poblacion!$E$8:$I$92,5,FALSE) -> 513.9373
K57: S.LEONOR | M57: P.S. PARQUIN | N57: =VLOOKUP($M57,Poblacion!$E$8:$I$92,2,FALSE) -> 467 | O57: =VLOOKUP($M57,Poblacion!$E$8:$I$92,4,FALSE) -> 231.23505 | P57: =VLOOKUP($M57,Poblacion!$E$8:$I$92,5,FALSE) -> 235.76495
K58: S.LEONOR | M58: P.S. JUCUL | N58: =VLOOKUP($M58,Poblacion!$E$8:$I$92,2,FALSE) -> 184 | O58: =VLOOKUP($M58,Poblacion!$E$8:$I$92,4,FALSE) -> 91.1076 | P58: =VLOOKUP($M58,Poblacion!$E$8:$I$92,5,FALSE) -> 92.8924
K59: TOTAL MICRORED CHURIN - OYON | N59: =SUM(N40:N58) -> 28570 | O59: =SUM(O40:O58) -> 14146.4355 | P59: 14423.5645
K60: =K33 -> Elaboración: Área de Estadística - RIS Huaura Oyón.
